Body,Body Name,Date,Transaction Number,Invoice Number,Amount,Supplier Name,Supplier ID ,VAT Registration Number ,Expense Area,Expense Type,Expense Code,Purchase Order
http://statistics.data.gov.uk/id/local-authority/29UP,Tonbridge & Malling Borough Council,7/5/2022,0041034457/1,41034457, 292.50,National Westminster Bank Plc,00894500,,Vehicle Licences,Patrolling,B22LF000030105,
http://statistics.data.gov.uk/id/local-authority/29UP,Tonbridge & Malling Borough Council,7/5/2022,0041034457/11,41034457, 74.32,National Westminster Bank Plc,00894500,,Trade Refuse Charges,Cleaning & Security,D21FD000044008,
http://statistics.data.gov.uk/id/local-authority/29UP,Tonbridge & Malling Borough Council,7/5/2022,0041034457/12,41034457, 56.56,National Westminster Bank Plc,00894500,,Purchases,Information Technology,D27KD000040101,
http://statistics.data.gov.uk/id/local-authority/29UP,Tonbridge & Malling Borough Council,7/5/2022,0041034457/13,41034457, 63.60,National Westminster Bank Plc,00894500,,Purchases,Information Technology,D27KD000040101,
http://statistics.data.gov.uk/id/local-authority/29UP,Tonbridge & Malling Borough Council,7/5/2022,0041034457/14,41034457, 47.25,National Westminster Bank Plc,00894500,,Purchases,Information Technology,D27KD000040101,
http://statistics.data.gov.uk/id/local-authority/29UP,Tonbridge & Malling Borough Council,7/5/2022,0041034457/15,41034457, 6.41,National Westminster Bank Plc,00894500,,Purchases,Information Technology,D27KD000040101,
http://statistics.data.gov.uk/id/local-authority/29UP,Tonbridge & Malling Borough Council,7/5/2022,0041034457/16,41034457, 14.08,National Westminster Bank Plc,00894500,,Software Hire & Support,Information Technology,D27KD000044059,
http://statistics.data.gov.uk/id/local-authority/29UP,Tonbridge & Malling Borough Council,7/5/2022,0041034457/17,41034457, 14.75,National Westminster Bank Plc,00894500,,Information & Publicity,Information & Publicity,D32MJ000044076,
http://statistics.data.gov.uk/id/local-authority/29UP,Tonbridge & Malling Borough Council,7/5/2022,0041034457/18,41034457, 350.50,National Westminster Bank Plc,00894500,,Legal Fees,Local Revenue & NNDR Collect,D41QA000044002,
http://statistics.data.gov.uk/id/local-authority/29UP,Tonbridge & Malling Borough Council,7/5/2022,0041034457/19,41034457, 161.74,National Westminster Bank Plc,00894500,,Health General,Food & Safety - General,H35SW000044049,
http://statistics.data.gov.uk/id/local-authority/29UP,Tonbridge & Malling Borough Council,7/5/2022,0041034457/2,41034457, 590.65,National Westminster Bank Plc,00894500,,Purchases,Tonbridge Castle Gatehouse,B40TG000040101,
http://statistics.data.gov.uk/id/local-authority/29UP,Tonbridge & Malling Borough Council,7/5/2022,0041034457/21,41034457, 59.96,National Westminster Bank Plc,00894500,,Sales,TIC Stock Account,K18AX000002002,
http://statistics.data.gov.uk/id/local-authority/29UP,Tonbridge & Malling Borough Council,7/5/2022,0041034457/22,41034457, 104.90,National Westminster Bank Plc,00894500,,Sales,TIC Stock Account,K18AX000002002,
http://statistics.data.gov.uk/id/local-authority/29UP,Tonbridge & Malling Borough Council,7/5/2022,0041034457/3,41034457, 36.94,National Westminster Bank Plc,00894500,,Purchases,Planning Sals&Overheads,D01AJDJ0140101,
http://statistics.data.gov.uk/id/local-authority/29UP,Tonbridge & Malling Borough Council,7/5/2022,0041034457/5,41034457, 100.00,National Westminster Bank Plc,00894500,,Ext Fees/Prof & Tech,Training,D10DCDR0413561,
http://statistics.data.gov.uk/id/local-authority/29UP,Tonbridge & Malling Borough Council,7/5/2022,0041034457/6,41034457, 99.00,National Westminster Bank Plc,00894500,,Ext Fees/Prof & Tech,Training,D10DCDV0913561,
http://statistics.data.gov.uk/id/local-authority/29UP,Tonbridge & Malling Borough Council,7/6/2022,0011044580/1,11044580, 1217.80,Sellick Partnership Group Limited,01336800,,Temporary Staff,Legal Sals&Overheads,D01ARDR0011300,
http://statistics.data.gov.uk/id/local-authority/29UP,Tonbridge & Malling Borough Council,7/6/2022,0011044581/1,11044581, 492.00,Tonbridge Historical Society,00458000,,Purchases,TIC Stock Account,K18AX000001002,
http://statistics.data.gov.uk/id/local-authority/29UP,Tonbridge & Malling Borough Council,7/6/2022,0011044582/1,11044582, 1154.93,KH Recruitment Ltd,01738900,,Temporary Staff,Personnel Sals&Overheads,D01ABDB0311300,
http://statistics.data.gov.uk/id/local-authority/29UP,Tonbridge & Malling Borough Council,7/6/2022,0011044584/1,11044584, 310.00,Thomson Snell & Passmore,00101700,,Legal Fees,Legal Sals&Overheads,D01ARDR0044002,
http://statistics.data.gov.uk/id/local-authority/29UP,Tonbridge & Malling Borough Council,7/6/2022,0011044585/1,11044585, 1280.00,Cornerstones Barristers,01359100,,Legal Fees,Legal Sals&Overheads,D01ARDR0044002,
http://statistics.data.gov.uk/id/local-authority/29UP,Tonbridge & Malling Borough Council,7/6/2022,0011044586/1,11044586, 606.00,Encore Envelopes Ltd,01750600,,Stationery,Electoral Registration,D31MF000043003,110069640
http://statistics.data.gov.uk/id/local-authority/29UP,Tonbridge & Malling Borough Council,7/6/2022,0011044587/1,11044587, 255.00,Loxton Installations Ltd,01278800,,BRREP Response - General,Larkfield Leisure Centre,M15HDP50001997,110069605
http://statistics.data.gov.uk/id/local-authority/29UP,Tonbridge & Malling Borough Council,7/6/2022,0011044588/1,11044588, 56.00,Willow Pumps Ltd,00114100,,BRREP Servicing - Pumping Stn,Tonbridge Swimming Pool,M15HBP20001931,110069172
http://statistics.data.gov.uk/id/local-authority/29UP,Tonbridge & Malling Borough Council,7/6/2022,0011044588/2,11044588, 112.00,Willow Pumps Ltd,00114100,,BRREP Servicing - Pumping Stn,Ton Sportsgrnd Bldgs / Toilets,M15HCP20001931,110069172
http://statistics.data.gov.uk/id/local-authority/29UP,Tonbridge & Malling Borough Council,7/6/2022,0011044588/3,11044588, 112.00,Willow Pumps Ltd,00114100,,BRREP Servicing - Pumping Stn,Vale Rise Depot,M15LCP20001931,110069172
http://statistics.data.gov.uk/id/local-authority/29UP,Tonbridge & Malling Borough Council,7/6/2022,0011044589/1,11044589, 112.00,East Sussex Fire Ltd,01843100,,Repairs & Mtce to Buildings,Homelessness,C01AATNHS20101,110069587
http://statistics.data.gov.uk/id/local-authority/29UP,Tonbridge & Malling Borough Council,7/6/2022,0011044590/1,11044590, 3088.73,Chillmech Limited,00978700,,BRREP Servicing-Air Condition,Angel Centre,M15HAP20001935,110069634
http://statistics.data.gov.uk/id/local-authority/29UP,Tonbridge & Malling Borough Council,7/6/2022,0011044591/1,11044591, 600.00,Hadene Engineering Ltd,00041900,,Other Expenses,Homeless Accommodation,P03AX000009908,110069581
http://statistics.data.gov.uk/id/local-authority/29UP,Tonbridge & Malling Borough Council,7/6/2022,0011044592/1,11044592, 2874.85,Chubb Fire & Security Ltd,00115400,174605362,BRREP Servicing-IntruderAlarm,Larkfield Leisure Centre,M15HDP20001939,110069642
http://statistics.data.gov.uk/id/local-authority/29UP,Tonbridge & Malling Borough Council,7/6/2022,0011044593/3,11044593, 1.75,Royal Mail,00086200,,Purchases,Mailsort Stock Account,K37BR000001002,
http://statistics.data.gov.uk/id/local-authority/29UP,Tonbridge & Malling Borough Council,7/6/2022,0011044593/4,11044593, 41.79,Royal Mail,00086200,,Purchases,Mailsort Stock Account,K37BR000001002,
http://statistics.data.gov.uk/id/local-authority/29UP,Tonbridge & Malling Borough Council,7/6/2022,0011044593/5,11044593, 1938.96,Royal Mail,00086200,,Purchases,Mailsort Stock Account,K37BR000001002,
http://statistics.data.gov.uk/id/local-authority/29UP,Tonbridge & Malling Borough Council,7/6/2022,0011044594/3,11044594, 69.45,Royal Mail,00086200,,Postages - Business Reply,Electoral Registration,D31MF000045003,
http://statistics.data.gov.uk/id/local-authority/29UP,Tonbridge & Malling Borough Council,7/6/2022,0011044594/4,11044594, 32.10,Royal Mail,00086200,,Purchases,Business Reply Stock Account,K14AT000001002,
http://statistics.data.gov.uk/id/local-authority/29UP,Tonbridge & Malling Borough Council,7/6/2022,0011044595/3,11044595, 4.20,Royal Mail,00086200,,Purchases,Mailsort Stock Account,K37BR000001002,
http://statistics.data.gov.uk/id/local-authority/29UP,Tonbridge & Malling Borough Council,7/6/2022,0011044595/4,11044595, 2602.66,Royal Mail,00086200,,Purchases,Mailsort Stock Account,K37BR000001002,
http://statistics.data.gov.uk/id/local-authority/29UP,Tonbridge & Malling Borough Council,7/6/2022,0011044596/3,11044596, 292.50,NLC Nova Lift Company Ltd,01735600,,BRREP Servicing - lifts,Leis Man Poult Wood Golf Centr,M15HEP20001930,
http://statistics.data.gov.uk/id/local-authority/29UP,Tonbridge & Malling Borough Council,7/6/2022,0011044597/3,11044597, 209.00,BML Building Services Ltd,01505000,,BRREP Window/door repairs,Larkfield Leisure Centre,M15HDP20001919,
http://statistics.data.gov.uk/id/local-authority/29UP,Tonbridge & Malling Borough Council,7/6/2022,0011044598/1,11044598, 198.45,Scottish Water Business Stream Ltd,01641100,,Estate Management Charge,Land Review,D40PS000020400,
http://statistics.data.gov.uk/id/local-authority/29UP,Tonbridge & Malling Borough Council,7/6/2022,0011044599/3,11044599, 224.52,Chubb Fire & Security Ltd,00115400,174605362,BRREP Servicing-IntruderAlarm,Tonbridge Castle / CAB,M15KFP20001939,
http://statistics.data.gov.uk/id/local-authority/29UP,Tonbridge & Malling Borough Council,7/6/2022,0011044600/1,11044600, 3809.36,Thomson Reuters,01323200,,Reference Books & Publications,Legal Sals&Overheads,D01AR000043010,
http://statistics.data.gov.uk/id/local-authority/29UP,Tonbridge & Malling Borough Council,7/6/2022,0011044601/3,11044601, 1217.80,Sellick Partnership Group Limited,01336800,,Temporary Staff,Legal Sals&Overheads,D01ARDR0011300,
http://statistics.data.gov.uk/id/local-authority/29UP,Tonbridge & Malling Borough Council,7/6/2022,0012008392/1,12008392, 2152.89,CCS Media Ltd,00018000,,BRREP General Maintenance,Gibson Building East,M15KGP10001900,410032201
http://statistics.data.gov.uk/id/local-authority/29UP,Tonbridge & Malling Borough Council,7/6/2022,0012008393/1,12008393, 7681.35,Capita Secure Information Solutions Ltd,00817100,,Software Hire & Support,Information Technology,D27KD000044059,
http://statistics.data.gov.uk/id/local-authority/29UP,Tonbridge & Malling Borough Council,7/6/2022,0012008394/1,12008394, 59.96,CCS Media Ltd,00018000,,Purchases,Information Technology,D27KD000040101,410032171
http://statistics.data.gov.uk/id/local-authority/29UP,Tonbridge & Malling Borough Council,7/6/2022,0012008395/1,12008395, 34.95,CCS Media Ltd,00018000,,Purchases,Information Technology,D27KD000040101,410032171
http://statistics.data.gov.uk/id/local-authority/29UP,Tonbridge & Malling Borough Council,7/6/2022,0012008396/1,12008396, 59.99,CCS Media Ltd,00018000,,Initial Furniture & Equipment,Capital Renewals IT,P06FBFB1009906,410032185
http://statistics.data.gov.uk/id/local-authority/29UP,Tonbridge & Malling Borough Council,7/6/2022,0012008397/1,12008397, 199.95,CCS Media Ltd,00018000,,Purchases,Information Technology,D27KD000040101,410032219
http://statistics.data.gov.uk/id/local-authority/29UP,Tonbridge & Malling Borough Council,7/6/2022,0012008397/2,12008397, 5.00,CCS Media Ltd,00018000,,Delivery Expenses,Information Technology,D27KD000044069,410032219
http://statistics.data.gov.uk/id/local-authority/29UP,Tonbridge & Malling Borough Council,7/6/2022,0012008398/1,12008398, 66.10,CCS Media Ltd,00018000,,Purchases,Information Technology,D27KD000040101,410032219
http://statistics.data.gov.uk/id/local-authority/29UP,Tonbridge & Malling Borough Council,7/6/2022,0012008399/1,12008399, 111.93,CCS Media Ltd,00018000,,Purchases,Information Technology,D27KD000040101,410032219
http://statistics.data.gov.uk/id/local-authority/29UP,Tonbridge & Malling Borough Council,7/6/2022,0012008400/1,12008400, 18.06,Esendex Limited,01008900,,Leased Lines & Modems,Information Technology,D27KD000045011,
http://statistics.data.gov.uk/id/local-authority/29UP,Tonbridge & Malling Borough Council,7/6/2022,0012008401/3,12008401, 500.00,IASME Consortium Ltd,01854600,,Subscriptions,Information Technology,D27KD000047002,
http://statistics.data.gov.uk/id/local-authority/29UP,Tonbridge & Malling Borough Council,7/6/2022,0012008402/1,12008402, 646.99,KCS,00054200,,Leasing Charges,Multi Function Devices,D22GB000044038,
http://statistics.data.gov.uk/id/local-authority/29UP,Tonbridge & Malling Borough Council,7/6/2022,0012008403/1,12008403, 559.50,KCS,00054200,,Leasing Charges,Multi Function Devices,D22GB000044038,
http://statistics.data.gov.uk/id/local-authority/29UP,Tonbridge & Malling Borough Council,7/6/2022,0012008404/1,12008404, 127.83,KCS,00054200,,Leasing Charges,Multi Function Devices,D22GB000044038,
http://statistics.data.gov.uk/id/local-authority/29UP,Tonbridge & Malling Borough Council,7/6/2022,0012008405/1,12008405, 105.51,KCS,00054200,,Leasing Charges,Multi Function Devices,D22GB000044038,
http://statistics.data.gov.uk/id/local-authority/29UP,Tonbridge & Malling Borough Council,7/6/2022,0012008406/1,12008406, 130.63,KCS,00054200,,Leasing Charges,Multi Function Devices,D22GB000044038,
http://statistics.data.gov.uk/id/local-authority/29UP,Tonbridge & Malling Borough Council,7/6/2022,0012008407/1,12008407, 130.63,KCS,00054200,,Leasing Charges,Multi Function Devices,D22GB000044038,
http://statistics.data.gov.uk/id/local-authority/29UP,Tonbridge & Malling Borough Council,7/6/2022,0012008408/1,12008408, 122.61,KCS,00054200,,Leasing Charges,Multi Function Devices,D22GB000044038,
http://statistics.data.gov.uk/id/local-authority/29UP,Tonbridge & Malling Borough Council,7/6/2022,0012008409/1,12008409, 122.61,KCS,00054200,,Leasing Charges,Multi Function Devices,D22GB000044038,
http://statistics.data.gov.uk/id/local-authority/29UP,Tonbridge & Malling Borough Council,7/6/2022,0012008410/1,12008410, 122.61,KCS,00054200,,Leasing Charges,Multi Function Devices,D22GB000044038,
http://statistics.data.gov.uk/id/local-authority/29UP,Tonbridge & Malling Borough Council,7/6/2022,0012008411/1,12008411, 122.61,KCS,00054200,,Leasing Charges,Multi Function Devices,D22GB000044038,
http://statistics.data.gov.uk/id/local-authority/29UP,Tonbridge & Malling Borough Council,7/6/2022,0012008412/1,12008412, 130.63,KCS,00054200,,Leasing Charges,Multi Function Devices,D22GB000044038,
http://statistics.data.gov.uk/id/local-authority/29UP,Tonbridge & Malling Borough Council,7/6/2022,0012008413/1,12008413, 82.58,KCS,00054200,,Leasing Charges,Multi Function Devices,D22GB000044038,
http://statistics.data.gov.uk/id/local-authority/29UP,Tonbridge & Malling Borough Council,7/6/2022,0012008414/1,12008414, 91.95,KCS,00054200,,Leasing Charges,Multi Function Devices,D22GB000044038,
http://statistics.data.gov.uk/id/local-authority/29UP,Tonbridge & Malling Borough Council,7/6/2022,0012008415/1,12008415, 122.61,KCS,00054200,,Leasing Charges,Multi Function Devices,D22GB000044038,
http://statistics.data.gov.uk/id/local-authority/29UP,Tonbridge & Malling Borough Council,7/6/2022,0012008416/1,12008416, 110.08,Vanquish Tech,01798700,124406447,Initial Furniture & Equipment,Capital Renewals IT,P06FBFB2009906,410032218
http://statistics.data.gov.uk/id/local-authority/29UP,Tonbridge & Malling Borough Council,7/6/2022,0012008416/2,12008416, 1188.46,Vanquish Tech,01798700,124406447,Initial Furniture & Equipment,Capital Renewals IT,P06FBFB2009906,410032218
http://statistics.data.gov.uk/id/local-authority/29UP,Tonbridge & Malling Borough Council,7/6/2022,0012008417/1,12008417, 97.10,Sumillion Ltd,01726600,,Purchases,Information Technology,D27KD000040101,410032220
http://statistics.data.gov.uk/id/local-authority/29UP,Tonbridge & Malling Borough Council,7/6/2022,0021037999/1,21037999, 1193.19,Arjo Ltd,00169800,,Initial Furniture & Equipment,Capital Renewals Leisure,P05KGBC0409906,220003136
http://statistics.data.gov.uk/id/local-authority/29UP,Tonbridge & Malling Borough Council,7/6/2022,0021037999/2,21037999, 119.00,Arjo Ltd,00169800,,Initial Furniture & Equipment,Capital Renewals Leisure,P05KGBC0409906,220003136
http://statistics.data.gov.uk/id/local-authority/29UP,Tonbridge & Malling Borough Council,7/6/2022,0021038000/1,21038000, 527.40,G.L. & R.G. Bourne,00737500,,Gates / Security,Haysden Country Park,B22LC000044017,210056722
http://statistics.data.gov.uk/id/local-authority/29UP,Tonbridge & Malling Borough Council,7/6/2022,0021038001/1,21038001, 40.00,G.L. & R.G. Bourne,00737500,,Maintenance of Grounds,Haysden Country Park,B22LC000020402,210056723
http://statistics.data.gov.uk/id/local-authority/29UP,Tonbridge & Malling Borough Council,7/6/2022,0021038002/1,21038002, 72.30,G.L. & R.G. Bourne,00737500,,Gates / Security,Haysden Country Park,B22LC000044017,210056722
http://statistics.data.gov.uk/id/local-authority/29UP,Tonbridge & Malling Borough Council,7/6/2022,0021038003/1,21038003, 3589.99,Cater-Kwik Ltd,01265500,,Other Expenses,LLCP Facility Improv,P05FF000009908,210056812
http://statistics.data.gov.uk/id/local-authority/29UP,Tonbridge & Malling Borough Council,7/6/2022,0021038004/1,21038004, 4899.00,Cater-Kwik Ltd,01265500,,Other Expenses,LLCP Facility Improv,P05FF000009908,210056813
http://statistics.data.gov.uk/id/local-authority/29UP,Tonbridge & Malling Borough Council,7/6/2022,0021038005/1,21038005, 950.00,CJS Plants LTD,01596000,,Maintenance of Grounds,Open Spaces & Amenity Areas,B22LE000020402,210056834
http://statistics.data.gov.uk/id/local-authority/29UP,Tonbridge & Malling Borough Council,7/6/2022,0021038005/2,21038005, 225.00,CJS Plants LTD,01596000,,Maintenance of Grounds,Open Spaces & Amenity Areas,B22LE000020402,210056834
http://statistics.data.gov.uk/id/local-authority/29UP,Tonbridge & Malling Borough Council,7/6/2022,0021038006/10,21038006, 4577.19,Landscape Services Ltd,00057600,,Grounds Maintenance Contract,Cemetery,B26MP000050103,
http://statistics.data.gov.uk/id/local-authority/29UP,Tonbridge & Malling Borough Council,7/6/2022,0021038006/11,21038006, 216.11,Landscape Services Ltd,00057600,,Grounds Maintenance Contract,Churchyards St Peter & St Paul,B28MX000050103,
http://statistics.data.gov.uk/id/local-authority/29UP,Tonbridge & Malling Borough Council,7/6/2022,0021038006/12,21038006, 157.16,Landscape Services Ltd,00057600,,Grounds Maintenance Contract,Churchyards St Stephens,B28MY000050103,
http://statistics.data.gov.uk/id/local-authority/29UP,Tonbridge & Malling Borough Council,7/6/2022,0021038006/13,21038006, 173.71,Landscape Services Ltd,00057600,,Grounds Maintenance Contract,Grounds,D21FF000050103,
http://statistics.data.gov.uk/id/local-authority/29UP,Tonbridge & Malling Borough Council,7/6/2022,0021038006/14,21038006, 329.46,Landscape Services Ltd,00057600,,Maintenance of Grounds,Parking Off-Street,E10HA000020402,
http://statistics.data.gov.uk/id/local-authority/29UP,Tonbridge & Malling Borough Council,7/6/2022,0021038006/15,21038006, 1033.20,Landscape Services Ltd,00057600,,Maintenance of Grounds,Parking Off-Street,E10HAE00120402,
http://statistics.data.gov.uk/id/local-authority/29UP,Tonbridge & Malling Borough Council,7/6/2022,0021038006/16,21038006, 98.11,Landscape Services Ltd,00057600,,Maintenance of Grounds,Parking Off-Street,E10HAE00220402,
http://statistics.data.gov.uk/id/local-authority/29UP,Tonbridge & Malling Borough Council,7/6/2022,0021038006/17,21038006, 88.97,Landscape Services Ltd,00057600,,Maintenance of Grounds,Parking Off-Street,E10HAE00320402,
http://statistics.data.gov.uk/id/local-authority/29UP,Tonbridge & Malling Borough Council,7/6/2022,0021038006/18,21038006, 22.19,Landscape Services Ltd,00057600,,Maintenance of Grounds,Parking Off-Street,E10HAE00420402,
http://statistics.data.gov.uk/id/local-authority/29UP,Tonbridge & Malling Borough Council,7/6/2022,0021038006/19,21038006, 0.57,Landscape Services Ltd,00057600,,Maintenance of Grounds,Parking Off-Street,E10HAE00520402,
http://statistics.data.gov.uk/id/local-authority/29UP,Tonbridge & Malling Borough Council,7/6/2022,0021038006/20,21038006, 62.11,Landscape Services Ltd,00057600,,Maintenance of Grounds,Parking Off-Street,E10HAE00620402,
http://statistics.data.gov.uk/id/local-authority/29UP,Tonbridge & Malling Borough Council,7/6/2022,0021038006/21,21038006, 145.01,Landscape Services Ltd,00057600,,Maintenance of Grounds,Parking Off-Street,E10HAE01020402,
http://statistics.data.gov.uk/id/local-authority/29UP,Tonbridge & Malling Borough Council,7/6/2022,0021038006/22,21038006, 3.21,Landscape Services Ltd,00057600,,Maintenance of Grounds,Parking Off-Street,E10HAE01220402,
http://statistics.data.gov.uk/id/local-authority/29UP,Tonbridge & Malling Borough Council,7/6/2022,0021038006/23,21038006, 7.09,Landscape Services Ltd,00057600,,Maintenance of Grounds,Parking Off-Street,E10HAE01320402,
http://statistics.data.gov.uk/id/local-authority/29UP,Tonbridge & Malling Borough Council,7/6/2022,0021038006/24,21038006, 29.50,Landscape Services Ltd,00057600,,Maintenance of Grounds,Parking Off-Street,E10HAE01520402,
http://statistics.data.gov.uk/id/local-authority/29UP,Tonbridge & Malling Borough Council,7/6/2022,0021038006/25,21038006, 57.64,Landscape Services Ltd,00057600,,Maintenance of Grounds,Parking Off-Street,E10HAE01620402,
http://statistics.data.gov.uk/id/local-authority/29UP,Tonbridge & Malling Borough Council,7/6/2022,0021038006/26,21038006, 23.42,Landscape Services Ltd,00057600,,Maintenance of Grounds,Parking Off-Street,E10HAE01720402,
http://statistics.data.gov.uk/id/local-authority/29UP,Tonbridge & Malling Borough Council,7/6/2022,0021038006/27,21038006, 14.39,Landscape Services Ltd,00057600,,Maintenance of Grounds,Parking Off-Street,E10HAE02120402,
http://statistics.data.gov.uk/id/local-authority/29UP,Tonbridge & Malling Borough Council,7/6/2022,0021038006/28,21038006, 22.91,Landscape Services Ltd,00057600,,Maintenance of Grounds,Parking Off-Street,E10HAE02320402,
http://statistics.data.gov.uk/id/local-authority/29UP,Tonbridge & Malling Borough Council,7/6/2022,0021038006/29,21038006, 87.83,Landscape Services Ltd,00057600,,Maintenance of Grounds,Parking Off-Street,E10HAE02820402,
http://statistics.data.gov.uk/id/local-authority/29UP,Tonbridge & Malling Borough Council,7/6/2022,0021038006/3,21038006, 21497.43,Landscape Services Ltd,00057600,,Grounds Maintenance Contract,Sports Grounds,B13ET000050103,
http://statistics.data.gov.uk/id/local-authority/29UP,Tonbridge & Malling Borough Council,7/6/2022,0021038006/30,21038006, 23.78,Landscape Services Ltd,00057600,,Maintenance of Grounds,Parking Off-Street,E10HAE04020402,
http://statistics.data.gov.uk/id/local-authority/29UP,Tonbridge & Malling Borough Council,7/6/2022,0021038006/31,21038006, 78.42,Landscape Services Ltd,00057600,,Maintenance of Grounds,Parking Off-Street,E10HAE04520402,
http://statistics.data.gov.uk/id/local-authority/29UP,Tonbridge & Malling Borough Council,7/6/2022,0021038006/4,21038006, 7461.13,Landscape Services Ltd,00057600,,Grounds Maintenance Contract,Tonbridge Castle Grounds,B22LB000050103,
http://statistics.data.gov.uk/id/local-authority/29UP,Tonbridge & Malling Borough Council,7/6/2022,0021038006/5,21038006, 56.77,Landscape Services Ltd,00057600,,Trade Refuse Charges,Haysden Country Park,B22LC000044008,
http://statistics.data.gov.uk/id/local-authority/29UP,Tonbridge & Malling Borough Council,7/6/2022,0021038006/6,21038006, 487.02,Landscape Services Ltd,00057600,,Litter Collection,Haysden Country Park,B22LC000044061,
http://statistics.data.gov.uk/id/local-authority/29UP,Tonbridge & Malling Borough Council,7/6/2022,0021038006/7,21038006, 1674.08,Landscape Services Ltd,00057600,,Grounds Maintenance Contract,Haysden Country Park,B22LC000050103,
http://statistics.data.gov.uk/id/local-authority/29UP,Tonbridge & Malling Borough Council,7/6/2022,0021038006/8,21038006, 583.97,Landscape Services Ltd,00057600,,Grounds Maintenance Contract,Haysden Country Park,B22LC000050103,
http://statistics.data.gov.uk/id/local-authority/29UP,Tonbridge & Malling Borough Council,7/6/2022,0021038006/9,21038006, 12393.51,Landscape Services Ltd,00057600,,Grounds Maintenance Contract,Open Spaces & Amenity Areas,B22LE000050103,
http://statistics.data.gov.uk/id/local-authority/29UP,Tonbridge & Malling Borough Council,7/6/2022,0021038007/1,21038007, 460.00,David Hodgkinson Photographer,01068900,,Marketing,Events Development,B41TJZ99944215,210056848
http://statistics.data.gov.uk/id/local-authority/29UP,Tonbridge & Malling Borough Council,7/6/2022,0021038011/1,21038011, 609.60,HABOKE Woodyard,01804700,,Purchases,Haysden Country Park,B22LC000040101,210056824
http://statistics.data.gov.uk/id/local-authority/29UP,Tonbridge & Malling Borough Council,7/6/2022,0021038012/3,21038012, 15.99,KCS,00054200,,Maintenance of Grounds,Open Spaces & Amenity Areas,B22LE000020402,
http://statistics.data.gov.uk/id/local-authority/29UP,Tonbridge & Malling Borough Council,7/6/2022,0021038013/1,21038013, 16598.79,Tonbridge & Malling Leisure Trust,01469100,,Employers Superannuation Costs,T&M Leisure Trust,B10DA000050107,
http://statistics.data.gov.uk/id/local-authority/29UP,Tonbridge & Malling Borough Council,7/6/2022,0021038015/1,21038015, 17000.34,ASF,01842900,,Initial Furniture & Equipment,Capital Renewals Leisure,P05KGBC0309906,210056728
http://statistics.data.gov.uk/id/local-authority/29UP,Tonbridge & Malling Borough Council,7/6/2022,0021038016/1,21038016, 40.00,Mr Mark Williams,01184500,,Marketing,Events Development,B41TJZ99944215,210056814
http://statistics.data.gov.uk/id/local-authority/29UP,Tonbridge & Malling Borough Council,7/6/2022,0022026798/1,22026798, 587.12,British Gas Services LTD,01260000,,Electricity,Homelessness,C01AAMAUN21002,
http://statistics.data.gov.uk/id/local-authority/29UP,Tonbridge & Malling Borough Council,7/6/2022,0022026799/1,22026799, 1150.45,All Home Services Ltd,01802400,,Other Expenses,Disabled Facilities Grant Mand,P03AC000009908,
http://statistics.data.gov.uk/id/local-authority/29UP,Tonbridge & Malling Borough Council,7/6/2022,0022026800/1,22026800, 334.72,Town & Country Housing Group,01385400,,Other Expenses,Disabled Facilities Grant Mand,P03AC000009908,
http://statistics.data.gov.uk/id/local-authority/29UP,Tonbridge & Malling Borough Council,7/6/2022,0022026801/1,22026801, 11246.00,Astor Bannerman (Medical) Ltd,00963200,,Other Expenses,Disabled Facilities Grant Mand,P03AC000009908,
http://statistics.data.gov.uk/id/local-authority/29UP,Tonbridge & Malling Borough Council,7/6/2022,0022026802/1,22026802, 4094.56,Elite Complete Build LTD,01625900,,Other Expenses,Disabled Facilities Grant Mand,P03AC000009908,
http://statistics.data.gov.uk/id/local-authority/29UP,Tonbridge & Malling Borough Council,7/6/2022,0022026803/1,22026803, 1946.53,Town & Country Housing Group,01385400,,Other Expenses,Disabled Facilities Grant Mand,P03AC000009908,
http://statistics.data.gov.uk/id/local-authority/29UP,Tonbridge & Malling Borough Council,7/6/2022,0022026804/1,22026804, 490.00,Countrystyle Group,00835900,781981681,Collection of Card,Dry Recycling,H34SR000054008,
http://statistics.data.gov.uk/id/local-authority/29UP,Tonbridge & Malling Borough Council,7/6/2022,0022026805/1,22026805, 351.00,DM Marketing Communications,01742000,,Publicity & Promotion,Dry Recycling,H34SRZ99944217,220003248
http://statistics.data.gov.uk/id/local-authority/29UP,Tonbridge & Malling Borough Council,7/6/2022,0022026806/1,22026806, 4322.11,Ward Security LTD,01490000,,Dog Warden,Street Scene,H23SD000044100,
http://statistics.data.gov.uk/id/local-authority/29UP,Tonbridge & Malling Borough Council,7/6/2022,0022026807/1,22026807, 4748.76,Clarion Housing,01078200,,Contribution from Other Bodies,Homelessness,C01AACV1995001,
http://statistics.data.gov.uk/id/local-authority/29UP,Tonbridge & Malling Borough Council,7/6/2022,0022026808/1,22026808, 2148.01,Clarion Housing,01078200,,Contribution from Other Bodies,Homelessness,C01AACV1995001,
http://statistics.data.gov.uk/id/local-authority/29UP,Tonbridge & Malling Borough Council,7/6/2022,0022026809/1,22026809, 2801.88,Clarion Housing,01078200,,Contribution from Other Bodies,Homelessness,C01AACV1995001,
http://statistics.data.gov.uk/id/local-authority/29UP,Tonbridge & Malling Borough Council,7/6/2022,0022026810/1,22026810, 4123.93,Clarion Housing,01078200,,Contribution from Other Bodies,Homelessness,C01AACV1995001,
http://statistics.data.gov.uk/id/local-authority/29UP,Tonbridge & Malling Borough Council,7/6/2022,0022026811/1,22026811, 3835.00,Higher Elevation LTD,01298700,,Other Expenses,Disabled Facilities Grant Mand,P03AC000009908,
http://statistics.data.gov.uk/id/local-authority/29UP,Tonbridge & Malling Borough Council,7/6/2022,0022026812/1,22026812, 14742.00,Craemer UK LTD,01616400,,Initial Furniture & Equipment,Green Waste Bin Growth/Replace,P02BC000009906,220003236
http://statistics.data.gov.uk/id/local-authority/29UP,Tonbridge & Malling Borough Council,7/6/2022,0022026813/1,22026813, 1221.00,G2 Recruitment Solutions,01786000,,Temporary Staff,Env Hlth & Hsg Sals&Overheads,D01AVDV0711300,
http://statistics.data.gov.uk/id/local-authority/29UP,Tonbridge & Malling Borough Council,7/6/2022,0022026814/1,22026814, 1242.46,G2 Recruitment Solutions,01786000,,Temporary Staff,Env Hlth & Hsg Sals&Overheads,D01AVDV0711300,
http://statistics.data.gov.uk/id/local-authority/29UP,Tonbridge & Malling Borough Council,7/6/2022,0022026815/1,22026815, 400.00,Green Recycling LTD,01563000,,Paper Recycling,Dry Recycling,H34SR000054024,
http://statistics.data.gov.uk/id/local-authority/29UP,Tonbridge & Malling Borough Council,7/6/2022,0022026816/1,22026816, 8417.48,Independent Reviews Ltd,01657100,,Temporary Staff,Env Hlth & Hsg Sals&Overheads,D01AVDV0711300,
http://statistics.data.gov.uk/id/local-authority/29UP,Tonbridge & Malling Borough Council,7/6/2022,0022026817/1,22026817, 930.00,Kent Property Services,01722500,,Temporary Accommodation,Homelessness,C01AA000044051,
http://statistics.data.gov.uk/id/local-authority/29UP,Tonbridge & Malling Borough Council,7/6/2022,0022026818/1,22026818, 1500.00,Smart Property Professionals,01815100,,Temporary Accommodation,Homelessness,C01AA000044051,
http://statistics.data.gov.uk/id/local-authority/29UP,Tonbridge & Malling Borough Council,7/6/2022,0022026819/1,22026819, 6301.00,SPA CAFFE LIMITED,00127100,,Temporary Accommodation,Homelessness,C01AA000044051,
http://statistics.data.gov.uk/id/local-authority/29UP,Tonbridge & Malling Borough Council,7/6/2022,0022026820/1,22026820, 753.75,Vivid Resourcing,01773700,,Temporary Staff,Env Hlth & Hsg Sals&Overheads,D01AVDV0711300,
http://statistics.data.gov.uk/id/local-authority/29UP,Tonbridge & Malling Borough Council,7/6/2022,0022026821/1,22026821, 4.00,REDACTED PERSONAL DATA,01175600,,Food Sampling,Food & Safety - Food Safety,H35SX000054011,
http://statistics.data.gov.uk/id/local-authority/29UP,Tonbridge & Malling Borough Council,7/6/2022,0022026822/1,22026822, 2700.00,Local Government Information Unit,01484200,,Subscriptions,Env Hlth & Hsg Sals&Overheads,D01AVDV0747002,220003244
http://statistics.data.gov.uk/id/local-authority/29UP,Tonbridge & Malling Borough Council,7/6/2022,0022026823/3,22026823, 374.73,KCC - L.A.S.E.R Commercial Services ,00184300,,Air Quality Monitoring,Environmental Protection,H32SN000054016,
http://statistics.data.gov.uk/id/local-authority/29UP,Tonbridge & Malling Borough Council,7/6/2022,0022026824/3,22026824, 344.61,KCC - L.A.S.E.R Commercial Services ,00184300,,Air Quality Monitoring,Environmental Protection,H32SN000054016,
http://statistics.data.gov.uk/id/local-authority/29UP,Tonbridge & Malling Borough Council,7/6/2022,0022026825/1,22026825, 5932.42,Accessible Solutions LTD,01539700,,Other Expenses,Disabled Facilities Grant Mand,P03AC000009908,
http://statistics.data.gov.uk/id/local-authority/29UP,Tonbridge & Malling Borough Council,7/6/2022,0022026826/1,22026826, 854.27,Town & Country Housing Group,01385400,,Other Expenses,Disabled Facilities Grant Mand,P03AC000009908,
http://statistics.data.gov.uk/id/local-authority/29UP,Tonbridge & Malling Borough Council,7/6/2022,0022026827/1,22026827, 5740.00,Ascendit Lifts Ltd,00446600,,Other Expenses,Disabled Facilities Grant Mand,P03AC000009908,
http://statistics.data.gov.uk/id/local-authority/29UP,Tonbridge & Malling Borough Council,7/6/2022,0022026828/1,22026828, 747.36,Town & Country Housing Group,01385400,,Other Expenses,Disabled Facilities Grant Mand,P03AC000009908,
http://statistics.data.gov.uk/id/local-authority/29UP,Tonbridge & Malling Borough Council,7/6/2022,0022026829/3,22026829, 4645.60,Countrystyle Group,00835900,781981681,Plastic Recycling,Dry Recycling,H34SR000054019,
http://statistics.data.gov.uk/id/local-authority/29UP,Tonbridge & Malling Borough Council,7/6/2022,0022026830/3,22026830, 490.00,Countrystyle Group,00835900,781981681,Collection of Card,Dry Recycling,H34SR000054008,
http://statistics.data.gov.uk/id/local-authority/29UP,Tonbridge & Malling Borough Council,7/6/2022,0022026831/1,22026831, 6630.00,Under My Roof Ltd,01806700,,Temporary Accommodation,Homelessness,C01AA000044051,
http://statistics.data.gov.uk/id/local-authority/29UP,Tonbridge & Malling Borough Council,7/6/2022,0022026832/1,22026832, 6851.00,Under My Roof Ltd,01806700,,Temporary Accommodation,Homelessness,C01AA000044051,
http://statistics.data.gov.uk/id/local-authority/29UP,Tonbridge & Malling Borough Council,7/6/2022,0022026833/1,22026833, 7590.00,Under My Roof Ltd,01806700,,Temporary Accommodation,Homelessness,C01AA000044051,
http://statistics.data.gov.uk/id/local-authority/29UP,Tonbridge & Malling Borough Council,7/6/2022,0031018736/1,31018736, 170.85,British Telecommunications Plc,00012800,,Maintenance - General,Security Services Management,E09GA000040135,
http://statistics.data.gov.uk/id/local-authority/29UP,Tonbridge & Malling Borough Council,7/6/2022,0031018737/1,31018737, 151.83,British Telecommunications Plc,00012800,,Maintenance - General,Security Services Management,E09GA000040135,
http://statistics.data.gov.uk/id/local-authority/29UP,Tonbridge & Malling Borough Council,7/6/2022,0031018738/1,31018738, 1149.87,CDER Group,01773300,,Adjudication & Enforcement Ser,Parking Off-Street,E10HA000044230,
http://statistics.data.gov.uk/id/local-authority/29UP,Tonbridge & Malling Borough Council,7/6/2022,0031018739/1,31018739, 207.65,Kings Hill Garage Ltd,01546300,,Transport Repair & Maintenance,Parking Off-Street,E10HA000030103,
http://statistics.data.gov.uk/id/local-authority/29UP,Tonbridge & Malling Borough Council,7/6/2022,0031018740/1,31018740, 1155.00,Marston,01485000,,Adjudication & Enforcement Ser,Parking Off-Street,E10HA000044230,
http://statistics.data.gov.uk/id/local-authority/29UP,Tonbridge & Malling Borough Council,7/6/2022,0031018741/1,31018741, 360.00,Monitor Pest Control Ltd,01476700,,CCTV Monitoring Station,Security Services Management,E09GA000051020,
http://statistics.data.gov.uk/id/local-authority/29UP,Tonbridge & Malling Borough Council,7/6/2022,0031018742/1,31018742, 2100.00,EE Olley & Sons,01830300,,Bridge Maintenance,Open Spaces & Amenity Areas,B22LE000020505,210056817
http://statistics.data.gov.uk/id/local-authority/29UP,Tonbridge & Malling Borough Council,7/6/2022,0031018744/1,31018744, 704.00,C. S. Mitchell LTD,01704800,,Payment re Prev Yrs Cred Acc,Sundry Creditors SSLTS,J80TL000001101,
http://statistics.data.gov.uk/id/local-authority/29UP,Tonbridge & Malling Borough Council,7/6/2022,0031018751/3,31018751, 360.00,Monitor Pest Control Ltd,01476700,,CCTV Monitoring Station,Security Services Management,E09GA000051020,
http://statistics.data.gov.uk/id/local-authority/29UP,Tonbridge & Malling Borough Council,7/6/2022,0031018753/3,31018753, 2991.33,Tonbridge & Malling Leisure Trust,01469100,,Ticket Refunds - Lower Castle,Parking Off-Street,E10HAE01344199,
http://statistics.data.gov.uk/id/local-authority/29UP,Tonbridge & Malling Borough Council,7/6/2022,0031018754/1,31018754, 170.85,British Telecommunications Plc,00012800,,Maintenance - General,Security Services Management,E09GA000040135,
http://statistics.data.gov.uk/id/local-authority/29UP,Tonbridge & Malling Borough Council,7/6/2022,0031018756/1,31018756, 82.89,Shell U.K. Oil Products Limited,01673300,,"Petrol, Diesel & Oil",Parking Off-Street,E10HA000030106,
http://statistics.data.gov.uk/id/local-authority/29UP,Tonbridge & Malling Borough Council,7/6/2022,0031018756/2,31018756, 82.88,Shell U.K. Oil Products Limited,01673300,,"Petrol, Diesel & Oil",Parking On-Street,E10HD000030106,
http://statistics.data.gov.uk/id/local-authority/29UP,Tonbridge & Malling Borough Council,7/6/2022,0031018757/1,31018757, 66.59,Shell U.K. Oil Products Limited,01673300,,"Petrol, Diesel & Oil",Parking Off-Street,E10HA000030106,
http://statistics.data.gov.uk/id/local-authority/29UP,Tonbridge & Malling Borough Council,7/6/2022,0031018757/2,31018757, 66.58,Shell U.K. Oil Products Limited,01673300,,"Petrol, Diesel & Oil",Parking On-Street,E10HD000030106,
http://statistics.data.gov.uk/id/local-authority/29UP,Tonbridge & Malling Borough Council,7/6/2022,0031018758/1,31018758, 1440.00,Imperial Civil Enforcement Solutions,00057200,,Information Technology,Parking Off-Street,E10HA000071170,310042815
http://statistics.data.gov.uk/id/local-authority/29UP,Tonbridge & Malling Borough Council,7/6/2022,0031018758/2,31018758, 2160.00,Imperial Civil Enforcement Solutions,00057200,,Information Technology,Parking On-Street,E10HD000071170,310042815
http://statistics.data.gov.uk/id/local-authority/29UP,Tonbridge & Malling Borough Council,7/6/2022,0031018759/1,31018759, 200.00,Arnold & Court Ltd,01411300,,Premises Repairs & Maintenance,Parking On-Street,E10HD000020601,310042833
http://statistics.data.gov.uk/id/local-authority/29UP,Tonbridge & Malling Borough Council,7/6/2022,0031018760/1,31018760, 310.00,Arnold & Court Ltd,01411300,,Premises Repairs & Maintenance,Parking Off-Street,E10HA000020601,310042835
http://statistics.data.gov.uk/id/local-authority/29UP,Tonbridge & Malling Borough Council,7/6/2022,0031018761/1,31018761, 200.00,Arnold & Court Ltd,01411300,,Repair & Mtce of Fixed Plant,Boro Highways & Emergency Oper,E01AA000020501,310042831
http://statistics.data.gov.uk/id/local-authority/29UP,Tonbridge & Malling Borough Council,7/6/2022,0032009641/1,32009641, 2590.00,G2 Recruitment Solutions,01786000,,Temporary Staff,Planning Sals&Overheads,D01AJDJ0111300,
http://statistics.data.gov.uk/id/local-authority/29UP,Tonbridge & Malling Borough Council,7/6/2022,0032009642/1,32009642, 3300.79,G2 Recruitment Solutions,01786000,,Temporary Staff,Planning Sals&Overheads,D01AJDJ0111300,
http://statistics.data.gov.uk/id/local-authority/29UP,Tonbridge & Malling Borough Council,7/6/2022,0032009643/1,32009643, 289.17,KM Media Group Ltd,00053900,,Advertising General,Development Management,A01ABZ99944216,320003420
http://statistics.data.gov.uk/id/local-authority/29UP,Tonbridge & Malling Borough Council,7/6/2022,0032009644/1,32009644, 2081.20,The Oyster Partnership,01196400,,Temporary Staff,Planning Sals&Overheads,D01AJDJ0111300,
http://statistics.data.gov.uk/id/local-authority/29UP,Tonbridge & Malling Borough Council,7/6/2022,0032009645/1,32009645, 1579.99,The Oyster Partnership,01196400,,Temporary Staff,Planning Sals&Overheads,D01AJDJ0111300,
http://statistics.data.gov.uk/id/local-authority/29UP,Tonbridge & Malling Borough Council,7/6/2022,0032009646/3,32009646, 1564.00,Vivid Resourcing,01773700,,Temporary Staff,Planning Sals&Overheads,D01AJDJ0111300,
http://statistics.data.gov.uk/id/local-authority/29UP,Tonbridge & Malling Borough Council,7/6/2022,0032009647/3,32009647, 1708.00,Vivid Resourcing,01773700,,Temporary Staff,Planning Sals&Overheads,D01AJDJ0111300,
http://statistics.data.gov.uk/id/local-authority/29UP,Tonbridge & Malling Borough Council,7/6/2022,0041034459/1,41034459, 516.46,KH Recruitment Ltd,01738900,,Temporary Staff,Finance Sals&Overheads,D01AFDF1111300,
http://statistics.data.gov.uk/id/local-authority/29UP,Tonbridge & Malling Borough Council,7/6/2022,0041034459/2,41034459, 612.26,KH Recruitment Ltd,01738900,,Temporary Staff,Finance Sals&Overheads,D01AFDF1111300,
http://statistics.data.gov.uk/id/local-authority/29UP,Tonbridge & Malling Borough Council,7/6/2022,0041034460/1,41034460, 20.00,Computershare Voucher Services,01212600,,Childcare Scheme,Finance Sals&Overheads,D01AFDF0911136,
http://statistics.data.gov.uk/id/local-authority/29UP,Tonbridge & Malling Borough Council,7/6/2022,0041034460/2,41034460, 1.40,Computershare Voucher Services,01212600,,National Insurance,Finance Sals&Overheads,D01AFDF0911191,
http://statistics.data.gov.uk/id/local-authority/29UP,Tonbridge & Malling Borough Council,7/6/2022,0041034460/3,41034460, 50.00,Computershare Voucher Services,01212600,,Childcare Scheme,Legal Sals&Overheads,D01ARDR0011136,
http://statistics.data.gov.uk/id/local-authority/29UP,Tonbridge & Malling Borough Council,7/6/2022,0041034460/4,41034460, 3.50,Computershare Voucher Services,01212600,,National Insurance,Legal Sals&Overheads,D01ARDR0011191,
http://statistics.data.gov.uk/id/local-authority/29UP,Tonbridge & Malling Borough Council,7/6/2022,0041034460/5,41034460, 20.00,Computershare Voucher Services,01212600,,Childcare Scheme,Env Hlth & Hsg Sals&Overheads,D01AVDV0211136,
http://statistics.data.gov.uk/id/local-authority/29UP,Tonbridge & Malling Borough Council,7/6/2022,0041034460/6,41034460, 1.40,Computershare Voucher Services,01212600,,National Insurance,Env Hlth & Hsg Sals&Overheads,D01AVDV0211191,
http://statistics.data.gov.uk/id/local-authority/29UP,Tonbridge & Malling Borough Council,7/6/2022,0041034460/7,41034460, 243.00,Computershare Voucher Services,01212600,,Childcare Scheme,Env Hlth & Hsg Sals&Overheads,D01AVDV0711136,
http://statistics.data.gov.uk/id/local-authority/29UP,Tonbridge & Malling Borough Council,7/6/2022,0041034460/8,41034460, 17.01,Computershare Voucher Services,01212600,,National Insurance,Env Hlth & Hsg Sals&Overheads,D01AVDV0711191,
http://statistics.data.gov.uk/id/local-authority/29UP,Tonbridge & Malling Borough Council,7/6/2022,0041034461/1,41034461, 9512.00,Grant Thornton UK LLP,01407400,,Audit Fees,Public Accountability,D29LR000044223,410032065
http://statistics.data.gov.uk/id/local-authority/29UP,Tonbridge & Malling Borough Council,7/6/2022,0041034462/1,41034462, 1373.25,The Oyster Partnership,01196400,,Temporary Staff,Finance Sals&Overheads,D01AFDF1111300,
http://statistics.data.gov.uk/id/local-authority/29UP,Tonbridge & Malling Borough Council,7/6/2022,0041034463/3,41034463, 1050.00,Morgan Hunt UK Ltd,01086900,,Temporary Staff,Finance Sals&Overheads,D01AFDF1111300,
http://statistics.data.gov.uk/id/local-authority/29UP,Tonbridge & Malling Borough Council,7/6/2022,0041034464/3,41034464, 7880.25,Maidstone Borough Council,01173700,,Bailiffs Commission,Local Revenue & NNDR Collect,D41QA000044075,
http://statistics.data.gov.uk/id/local-authority/29UP,Tonbridge & Malling Borough Council,7/6/2022,0041034465/3,41034465, 3104.52,Maidstone Borough Council,01173700,,Bailiffs Commission,Local Revenue & NNDR Collect,D41QA000044075,
http://statistics.data.gov.uk/id/local-authority/29UP,Tonbridge & Malling Borough Council,7/6/2022,0041034466/3,41034466, 2229.65,Rundle & Co Ltd,00087200,,Bailiffs Commission,Local Revenue & NNDR Collect,D41QA000044075,
http://statistics.data.gov.uk/id/local-authority/29UP,Tonbridge & Malling Borough Council,7/6/2022,0041034467/3,41034467, 113.98,Rundle & Co Ltd,00087200,,Bailiffs Commission,Local Revenue & NNDR Collect,D41QA000044075,
http://statistics.data.gov.uk/id/local-authority/29UP,Tonbridge & Malling Borough Council,7/6/2022,0051008716/1,51008716, 2628.00,Redactive Publishing Limited,01791300,,Recruitment Advertising,Recruitment Expenses,D10DADJ0113110,510010580
http://statistics.data.gov.uk/id/local-authority/29UP,Tonbridge & Malling Borough Council,7/6/2022,0051008718/1,51008718, 725.00,Alpha Parking Ltd,01167300,,Ext Fees/Prof & Tech,Training,D10DCDE0413561,510010582
http://statistics.data.gov.uk/id/local-authority/29UP,Tonbridge & Malling Borough Council,7/6/2022,0051008719/1,51008719, 7500.00,Jobs Go Public Limited,00556100,,Recruitment Advertising,Recruitment Expenses,D10DA000013110,510010586
http://statistics.data.gov.uk/id/local-authority/29UP,Tonbridge & Malling Borough Council,7/7/2022,0041034473/1,41034473, 595.82,King & Shaxson Investments,01411100,,Professional Fees,Treasury Management,D43QT000044001,
http://statistics.data.gov.uk/id/local-authority/29UP,Tonbridge & Malling Borough Council,7/7/2022,0041034474/1,41034474, 1950.00,Post Office Ltd - Via AllPay,01855500,,Energy Rebate Scheme Main,Council Tax Support,D42QFFUEL48103,
http://statistics.data.gov.uk/id/local-authority/29UP,Tonbridge & Malling Borough Council,7/7/2022,0041034475/1,41034475, 2646.03,National Westminster Bank Plc,00069400,,Bank Charges,Banking Arrangements,D43QK000044222,
http://statistics.data.gov.uk/id/local-authority/29UP,Tonbridge & Malling Borough Council,7/11/2022,0041034479/1,41034479, 15.20,HSBC Bank Plc,01740800,,Bank Charges,Banking Arrangements,D43QK000044222,
http://statistics.data.gov.uk/id/local-authority/29UP,Tonbridge & Malling Borough Council,7/11/2022,0041034480/1,41034480, 334.65,King & Shaxson Investments,01411100,,Professional Fees,Treasury Management,D43QT000044001,
http://statistics.data.gov.uk/id/local-authority/29UP,Tonbridge & Malling Borough Council,7/11/2022,0041034481/1,41034481, 769.91,King & Shaxson Investments,01411100,,Professional Fees,Treasury Management,D43QT000044001,
http://statistics.data.gov.uk/id/local-authority/29UP,Tonbridge & Malling Borough Council,7/13/2022,0011044319/1,11044319, 1217.80,Sellick Partnership Group Limited,01336800,,Temporary Staff,Legal Sals&Overheads,D01ARDR0011300,
http://statistics.data.gov.uk/id/local-authority/29UP,Tonbridge & Malling Borough Council,7/13/2022,0011044602/1,11044602, 2200.00,Access Intelligence Media and Comms Ltd,00971600,,Information & Publicity,Information & Publicity,D32MJ000044076,110069650
http://statistics.data.gov.uk/id/local-authority/29UP,Tonbridge & Malling Borough Council,7/13/2022,0011044603/1,11044603, 707.28,Key Craft,01148600,,Purchases,TIC Stock Account,K18AX000001002,
http://statistics.data.gov.uk/id/local-authority/29UP,Tonbridge & Malling Borough Council,7/13/2022,0011044604/1,11044604, 1465.80,KH Recruitment Ltd,01738900,,Temporary Staff,Personnel Sals&Overheads,D01ABDB0311300,
http://statistics.data.gov.uk/id/local-authority/29UP,Tonbridge & Malling Borough Council,7/13/2022,0011044605/1,11044605, 223.02,KH Recruitment Ltd,01738900,,Temporary Staff,Personnel Sals&Overheads,D01ABDB0311300,
http://statistics.data.gov.uk/id/local-authority/29UP,Tonbridge & Malling Borough Council,7/13/2022,0011044607/1,11044607, 266.00,Disclosure & Barring Service,00865900,,Professional Fees,Licences - Fee Paying,H27SH000044001,
http://statistics.data.gov.uk/id/local-authority/29UP,Tonbridge & Malling Borough Council,7/13/2022,0011044608/1,11044608, 5000.00,Millson Vending Ltd,01856400,,Economic Development & Regen,Eco Dev & Reg Gen Bus Support,D52TD000047027,
http://statistics.data.gov.uk/id/local-authority/29UP,Tonbridge & Malling Borough Council,7/13/2022,0011044609/1,11044609, 5000.00,Tonbridge Angels Football Club Ltd,01855700,,Economic Development & Regen,Eco Dev & Reg Gen Bus Support,D52TD000047027,
http://statistics.data.gov.uk/id/local-authority/29UP,Tonbridge & Malling Borough Council,7/13/2022,0011044610/1,11044610, 485.10,Bevan Brittan LLP,01096600,,Legal Fees,Legal Sals&Overheads,D01ARDR0044002,
http://statistics.data.gov.uk/id/local-authority/29UP,Tonbridge & Malling Borough Council,7/13/2022,0011044611/1,11044611, 1217.80,Sellick Partnership Group Limited,01336800,,Temporary Staff,Legal Sals&Overheads,D01ARDR0011300,
http://statistics.data.gov.uk/id/local-authority/29UP,Tonbridge & Malling Borough Council,7/13/2022,0011044612/1,11044612, 1500.00,The Speedy Kitchen,01855800,,Economic Development & Regen,Eco Dev & Reg Gen Bus Support,D52TD000047027,
http://statistics.data.gov.uk/id/local-authority/29UP,Tonbridge & Malling Borough Council,7/13/2022,0011044613/1,11044613, 1136.00,Thomson Snell & Passmore,00101700,,Legal Fees,Legal Sals&Overheads,D01ARDR0044002,
http://statistics.data.gov.uk/id/local-authority/29UP,Tonbridge & Malling Borough Council,7/13/2022,0011044614/1,11044614, 527.00,Thomson Snell & Passmore,00101700,,Legal Fees,Legal Sals&Overheads,D01ARDR0044002,
http://statistics.data.gov.uk/id/local-authority/29UP,Tonbridge & Malling Borough Council,7/13/2022,0011044615/1,11044615, 2121.00,Thomson Snell & Passmore,00101700,,Legal Fees,Legal Sals&Overheads,D01ARDR0044002,
http://statistics.data.gov.uk/id/local-authority/29UP,Tonbridge & Malling Borough Council,7/13/2022,0011044616/1,11044616, 378.00,Thomson Snell & Passmore,00101700,,Legal Fees,Legal Sals&Overheads,D01ARDR0044002,
http://statistics.data.gov.uk/id/local-authority/29UP,Tonbridge & Malling Borough Council,7/13/2022,0011044617/1,11044617, 336.95,Shaw & Sons Ltd,00090300,,Other Expenses,Mayoral & Other Member Support,D29LX000048010,110069586
http://statistics.data.gov.uk/id/local-authority/29UP,Tonbridge & Malling Borough Council,7/13/2022,0012008418/1,12008418, 371.40,Phoenix Software Ltd,00077400,755349015,Software Hire & Support,Information Technology,D27KD000044059,410032217
http://statistics.data.gov.uk/id/local-authority/29UP,Tonbridge & Malling Borough Council,7/13/2022,0012008418/2,12008418, 10.00,Phoenix Software Ltd,00077400,755349015,Delivery Expenses,Information Technology,D27KD000044069,410032217
http://statistics.data.gov.uk/id/local-authority/29UP,Tonbridge & Malling Borough Council,7/13/2022,0012008419/3,12008419, 2148.87,NTT Cloud Communications UK Ltd,01794600,,Software Hire & Support,Information Technology,D27KD000044059,
http://statistics.data.gov.uk/id/local-authority/29UP,Tonbridge & Malling Borough Council,7/13/2022,0012008421/1,12008421, 79.80,Insight Direct (UK) Ltd,01092700,,Purchases,Information Technology,D27KD000040101,410032225
http://statistics.data.gov.uk/id/local-authority/29UP,Tonbridge & Malling Borough Council,7/13/2022,0012008422/1,12008422, 10.20,Daisy Communications,01068100,,Telephones - Rentals,General Admin Telephones,D24GT000045005,
http://statistics.data.gov.uk/id/local-authority/29UP,Tonbridge & Malling Borough Council,7/13/2022,0012008422/2,12008422, 252.90,Daisy Communications,01068100,,Telephones - Call Costs,General Admin Telephones,D24GT000045006,
http://statistics.data.gov.uk/id/local-authority/29UP,Tonbridge & Malling Borough Council,7/13/2022,0012008422/3,12008422, 84.88,Daisy Communications,01068100,,Leased Lines & Modems,Information Technology,D27KD000045011,
http://statistics.data.gov.uk/id/local-authority/29UP,Tonbridge & Malling Borough Council,7/13/2022,0012008422/4,12008422, 65.88,Daisy Communications,01068100,,Maintenance - General,Security Services Management,E09GA000040135,
http://statistics.data.gov.uk/id/local-authority/29UP,Tonbridge & Malling Borough Council,7/13/2022,0012008423/1,12008423, 816.75,Canon (UK) Limited,00298700,,Maintenance - Ancillary Equip,Information Technology,D27KD000040137,
http://statistics.data.gov.uk/id/local-authority/29UP,Tonbridge & Malling Borough Council,7/13/2022,0012008424/1,12008424, 4860.00,NEC Software Solutions UK Ltd,01073900,202159745,Software Hire & Support,Information Technology,D27KD000044059,410032184
http://statistics.data.gov.uk/id/local-authority/29UP,Tonbridge & Malling Borough Council,7/13/2022,0012008425/1,12008425, 130.63,KCS,00054200,,Leasing Charges,Multi Function Devices,D22GB000044038,
http://statistics.data.gov.uk/id/local-authority/29UP,Tonbridge & Malling Borough Council,7/13/2022,0012008425/2,12008425, 29.43,KCS,00054200,,Leasing Charges,Multi Function Devices,D22GB000044038,
http://statistics.data.gov.uk/id/local-authority/29UP,Tonbridge & Malling Borough Council,7/13/2022,0012008426/1,12008426, 47.97,CCS Media Ltd,00018000,,Purchases,Information Technology,D27KD000040101,410032219
http://statistics.data.gov.uk/id/local-authority/29UP,Tonbridge & Malling Borough Council,7/13/2022,0012008427/1,12008427, 17.97,CCS Media Ltd,00018000,,Purchases,Information Technology,D27KD000040101,410032223
http://statistics.data.gov.uk/id/local-authority/29UP,Tonbridge & Malling Borough Council,7/13/2022,0012008427/2,12008427, 17.97,CCS Media Ltd,00018000,,Purchases,Information Technology,D27KD000040101,410032223
http://statistics.data.gov.uk/id/local-authority/29UP,Tonbridge & Malling Borough Council,7/13/2022,0012008427/3,12008427, 17.97,CCS Media Ltd,00018000,,Purchases,Information Technology,D27KD000040101,410032223
http://statistics.data.gov.uk/id/local-authority/29UP,Tonbridge & Malling Borough Council,7/13/2022,0012008427/4,12008427, 5.00,CCS Media Ltd,00018000,,Delivery Expenses,Information Technology,D27KD000044069,410032223
http://statistics.data.gov.uk/id/local-authority/29UP,Tonbridge & Malling Borough Council,7/13/2022,0021038014/1,21038014, 70.00,Weddle and Co,00714900,,Maintenance of Grounds,Tonbridge Castle Grounds,B22LB000020402,210056850
http://statistics.data.gov.uk/id/local-authority/29UP,Tonbridge & Malling Borough Council,7/13/2022,0021038017/1,21038017, 82.20,Bluebell Coffee Hub,01854700,,Events Support,Events Development,B41TJ000044041,
http://statistics.data.gov.uk/id/local-authority/29UP,Tonbridge & Malling Borough Council,7/13/2022,0021038018/1,21038018, 383.99,Cater-Kwik Ltd,01265500,,Other Expenses,LLCP Facility Improv,P05FF000009908,210056811
http://statistics.data.gov.uk/id/local-authority/29UP,Tonbridge & Malling Borough Council,7/13/2022,0021038019/1,21038019, 95.00,Fields in Trust,01065400,,Maintenance of Grounds,Open Spaces & Amenity Areas,B22LE000020402,
http://statistics.data.gov.uk/id/local-authority/29UP,Tonbridge & Malling Borough Council,7/13/2022,0021038020/1,21038020, 309.43,Landscape Services Ltd,00057600,,Maintenance of Grounds,Sports Grounds,B13ET000020402,210056846
http://statistics.data.gov.uk/id/local-authority/29UP,Tonbridge & Malling Borough Council,7/13/2022,0021038021/3,21038021, 42.00,Maidstone Signs Ltd,00940000,,Events Support,Events Development,B41TJ000044041,
http://statistics.data.gov.uk/id/local-authority/29UP,Tonbridge & Malling Borough Council,7/13/2022,0021038024/1,21038024, 636.23,Streetmaster (South Wales) Ltd,00222100,,Maintenance of Grounds,Sports Grounds,B13ET000020402,210056733
http://statistics.data.gov.uk/id/local-authority/29UP,Tonbridge & Malling Borough Council,7/13/2022,0021038025/1,21038025, 624.00,Streetmaster (South Wales) Ltd,00222100,,Maintenance of Grounds,Sports Grounds,B13ET000020402,210056760
http://statistics.data.gov.uk/id/local-authority/29UP,Tonbridge & Malling Borough Council,7/13/2022,0021038026/1,21038026, 30.65,Streetmaster (South Wales) Ltd,00222100,,Maintenance of Grounds,Open Spaces & Amenity Areas,B22LE000020402,310042821
http://statistics.data.gov.uk/id/local-authority/29UP,Tonbridge & Malling Borough Council,7/13/2022,0021038026/2,21038026, 276.00,Streetmaster (South Wales) Ltd,00222100,,Maintenance of Grounds,Open Spaces & Amenity Areas,B22LE000020402,310042821
http://statistics.data.gov.uk/id/local-authority/29UP,Tonbridge & Malling Borough Council,7/13/2022,0021038027/3,21038027, 58.00,Streamline (Kent) Limited,01043100,,Youth Initiatives,Youth Partnerships,B33PG000048124,
http://statistics.data.gov.uk/id/local-authority/29UP,Tonbridge & Malling Borough Council,7/13/2022,0021038028/1,21038028, 3996.00,Golf Swing Systems Ltd,01855300,,Initial Furniture & Equipment,Capital Renewals Leisure,P05KGBC0309906,210056855
http://statistics.data.gov.uk/id/local-authority/29UP,Tonbridge & Malling Borough Council,7/13/2022,0022026834/1,22026834, 2010.00,1st  Steps Housing Kent,01716100,,Temporary Accommodation,Homelessness,C01AA000044051,
http://statistics.data.gov.uk/id/local-authority/29UP,Tonbridge & Malling Borough Council,7/13/2022,0022026835/1,22026835, 448.51,Town & Country Housing Group,01385400,,Other Expenses,Disabled Facilities Grant Mand,P03AC000009908,
http://statistics.data.gov.uk/id/local-authority/29UP,Tonbridge & Malling Borough Council,7/13/2022,0022026836/1,22026836, 680.00,Keith Rawlings,01358700,,Temporary Accommodation,Homelessness,C01AA000044051,
http://statistics.data.gov.uk/id/local-authority/29UP,Tonbridge & Malling Borough Council,7/13/2022,0022026837/1,22026837, 3630.00,House to Home Lettings Ltd ,01647600,,Temporary Accommodation,Homelessness,C01AA000044051,
http://statistics.data.gov.uk/id/local-authority/29UP,Tonbridge & Malling Borough Council,7/13/2022,0022026839/1,22026839, 1500.00,Kent Housing,01503200,,Temporary Accommodation,Homelessness,C01AA000044051,
http://statistics.data.gov.uk/id/local-authority/29UP,Tonbridge & Malling Borough Council,7/13/2022,0022026840/1,22026840, 9355.00,Less Homeless Ltd,01489300,,Temporary Accommodation,Homelessness,C01AA000044051,
http://statistics.data.gov.uk/id/local-authority/29UP,Tonbridge & Malling Borough Council,7/13/2022,0022026841/3,22026841, 300.00,Monitor Pest Control Ltd,01476700,,Other Expenses,Pest Control,H24SE000048010,
http://statistics.data.gov.uk/id/local-authority/29UP,Tonbridge & Malling Borough Council,7/13/2022,0022026843/3,22026843, 9720.00,Simon Niblett Lettings,00072600,,Temporary Accommodation,Homelessness,C01AA000044051,
http://statistics.data.gov.uk/id/local-authority/29UP,Tonbridge & Malling Borough Council,7/13/2022,0022026844/3,22026844, 9720.00,Simon Niblett Lettings,00072600,,Temporary Accommodation,Homelessness,C01AA000044051,
http://statistics.data.gov.uk/id/local-authority/29UP,Tonbridge & Malling Borough Council,7/13/2022,0022026845/3,22026845, 3300.00,Simon Niblett Lettings,00072600,,Temporary Accommodation,Homelessness,C01AA000044051,
http://statistics.data.gov.uk/id/local-authority/29UP,Tonbridge & Malling Borough Council,7/13/2022,0022026846/1,22026846, 360.00,Town & Country Housing Group,01385400,,Countywide DFG Project,Private Sector Housing Renewal,C03BD000044031,
http://statistics.data.gov.uk/id/local-authority/29UP,Tonbridge & Malling Borough Council,7/13/2022,0022026847/1,22026847, 6851.00,Under My Roof Ltd,01806700,,Temporary Accommodation,Homelessness,C01AA000044051,
http://statistics.data.gov.uk/id/local-authority/29UP,Tonbridge & Malling Borough Council,7/13/2022,0022026848/1,22026848, 2425.00,Access & Automation Ltd,01773400,,Other Expenses,Disabled Facilities Grant Mand,P03AC000009908,
http://statistics.data.gov.uk/id/local-authority/29UP,Tonbridge & Malling Borough Council,7/13/2022,0022026849/1,22026849, 1473.54,Town & Country Housing Group,01385400,,Other Expenses,Disabled Facilities Grant Mand,P03AC000009908,
http://statistics.data.gov.uk/id/local-authority/29UP,Tonbridge & Malling Borough Council,7/13/2022,0022026850/1,22026850, 6902.00,Kent Accommodation Ltd,01722000,,Temporary Accommodation,Homelessness,C01AA000044051,
http://statistics.data.gov.uk/id/local-authority/29UP,Tonbridge & Malling Borough Council,7/13/2022,0022026851/1,22026851, 8170.00,Premier Property Providers,01785400,,Temporary Accommodation,Homelessness,C01AA000044051,
http://statistics.data.gov.uk/id/local-authority/29UP,Tonbridge & Malling Borough Council,7/13/2022,0022026852/3,22026852, 500.00,Counterweight LTD,01506600,,Healthy Living Initiatives,Public Health - Healthy Living,H40SYVH0048145,
http://statistics.data.gov.uk/id/local-authority/29UP,Tonbridge & Malling Borough Council,7/13/2022,0022026853/1,22026853, 3660.00,Simply Rented Ltd ,01691400,,Temporary Accommodation,Homelessness,C01AA000044051,
http://statistics.data.gov.uk/id/local-authority/29UP,Tonbridge & Malling Borough Council,7/13/2022,0022026854/1,22026854, 2154.83,The Care Group-Housing & Care Trust,01699600,,Temporary Accommodation,Homelessness,C01AA000044051,
http://statistics.data.gov.uk/id/local-authority/29UP,Tonbridge & Malling Borough Council,7/13/2022,0022026855/1,22026855, 29310.00,Social & Community Care,01768400,,Temporary Accommodation,Homelessness,C01AA000044051,
http://statistics.data.gov.uk/id/local-authority/29UP,Tonbridge & Malling Borough Council,7/13/2022,0022026856/1,22026856, 360.00,Britains Limited,01743900,,Repairs & Mtce to Buildings,Homelessness,C01AA000020101,220003250
http://statistics.data.gov.uk/id/local-authority/29UP,Tonbridge & Malling Borough Council,7/13/2022,0022026857/1,22026857, 46.00,Housing Ombudsman Service,01767100,,Subscriptions,Env Hlth & Hsg Sals&Overheads,D01AVDV0747002,
http://statistics.data.gov.uk/id/local-authority/29UP,Tonbridge & Malling Borough Council,7/13/2022,0022026858/3,22026858, 1510.80,Lucy and Martin Recycling LTD,01694200,,Bring Sites Mixed Recycling,Dry Recycling,H34SR000054026,
http://statistics.data.gov.uk/id/local-authority/29UP,Tonbridge & Malling Borough Council,7/13/2022,0022026859/3,22026859, 220.00,Lucy and Martin Recycling LTD,01694200,,General Maintenance,Dry Recycling,H34SR000020301,
http://statistics.data.gov.uk/id/local-authority/29UP,Tonbridge & Malling Borough Council,7/13/2022,0022026860/1,22026860, 56.73,Maidstone Borough Council,01173700,,Council Tax,Homelessness,C01AA000023002,
http://statistics.data.gov.uk/id/local-authority/29UP,Tonbridge & Malling Borough Council,7/13/2022,0022026861/1,22026861, 186.45,Maidstone Borough Council,01173700,,Council Tax,Homelessness,C01AA000023002,
http://statistics.data.gov.uk/id/local-authority/29UP,Tonbridge & Malling Borough Council,7/13/2022,0022026862/1,22026862, 48762.00,Paramount Independent Property Suppliers,01595300,,Temporary Accommodation,Homelessness,C01AA000044051,
http://statistics.data.gov.uk/id/local-authority/29UP,Tonbridge & Malling Borough Council,7/13/2022,0022026863/1,22026863, 37.00,Biffa Waste Services Ltd,01284500,,Trade Refuse Charges,Cleaning & Security,D21FD000044008,
http://statistics.data.gov.uk/id/local-authority/29UP,Tonbridge & Malling Borough Council,7/13/2022,0022026864/1,22026864, 41.52,Bulb Energy Ltd,01799000,214948301,Electricity,Homelessness,C01AA000021002,
http://statistics.data.gov.uk/id/local-authority/29UP,Tonbridge & Malling Borough Council,7/13/2022,0022026864/2,22026864, 9.98,Bulb Energy Ltd,01799000,214948301,Electricity,Homelessness,C01AA000021002,
http://statistics.data.gov.uk/id/local-authority/29UP,Tonbridge & Malling Borough Council,7/13/2022,0022026865/1,22026865, 250.00,Ricardo- AEA- Ltd,00445700,,Initial Furniture & Equipment,Air Quality Monitoring Station,P02EN000009906,220003239
http://statistics.data.gov.uk/id/local-authority/29UP,Tonbridge & Malling Borough Council,7/13/2022,0022026865/2,22026865, 13340.00,Ricardo- AEA- Ltd,00445700,,Initial Furniture & Equipment,Air Quality Monitoring Station,P02EN000009906,220003239
http://statistics.data.gov.uk/id/local-authority/29UP,Tonbridge & Malling Borough Council,7/13/2022,0022026865/3,22026865, 1425.00,Ricardo- AEA- Ltd,00445700,,Initial Furniture & Equipment,Air Quality Monitoring Station,P02EN000009906,220003239
http://statistics.data.gov.uk/id/local-authority/29UP,Tonbridge & Malling Borough Council,7/13/2022,0022026865/4,22026865, 2500.00,Ricardo- AEA- Ltd,00445700,,Initial Furniture & Equipment,Air Quality Monitoring Station,P02EN000009906,220003239
http://statistics.data.gov.uk/id/local-authority/29UP,Tonbridge & Malling Borough Council,7/13/2022,0022026865/5,22026865, 1000.00,Ricardo- AEA- Ltd,00445700,,Initial Furniture & Equipment,Air Quality Monitoring Station,P02EN000009906,220003239
http://statistics.data.gov.uk/id/local-authority/29UP,Tonbridge & Malling Borough Council,7/13/2022,0022026866/1,22026866, 900.00,Ricardo- AEA- Ltd,00445700,,Air Quality Monitoring,Environmental Protection,H32SN000054016,220003238
http://statistics.data.gov.uk/id/local-authority/29UP,Tonbridge & Malling Borough Council,7/13/2022,0022026866/2,22026866, 3250.00,Ricardo- AEA- Ltd,00445700,,Air Quality Monitoring,Environmental Protection,H32SN000054016,220003238
http://statistics.data.gov.uk/id/local-authority/29UP,Tonbridge & Malling Borough Council,7/13/2022,0022026867/1,22026867, 1221.00,G2 Recruitment Solutions,01786000,,Temporary Staff,Env Hlth & Hsg Sals&Overheads,D01AVDV0711300,
http://statistics.data.gov.uk/id/local-authority/29UP,Tonbridge & Malling Borough Council,7/13/2022,0022026868/1,22026868, 1242.46,G2 Recruitment Solutions,01786000,,Temporary Staff,Env Hlth & Hsg Sals&Overheads,D01AVDV0711300,
http://statistics.data.gov.uk/id/local-authority/29UP,Tonbridge & Malling Borough Council,7/13/2022,0022026869/1,22026869, 542.03,Specialist Hygiene Services,01466100,,Cleaning & Domestic Supplies,Haysden Country Park,B22LC000026001,
http://statistics.data.gov.uk/id/local-authority/29UP,Tonbridge & Malling Borough Council,7/13/2022,0022026869/2,22026869, 5217.22,Specialist Hygiene Services,01466100,,Contract Payments,Public Conveniences,H22SC000054001,
http://statistics.data.gov.uk/id/local-authority/29UP,Tonbridge & Malling Borough Council,7/13/2022,0022026870/1,22026870, 3301.73,Ward Security LTD,01490000,,Dog Warden,Street Scene,H23SD000044100,
http://statistics.data.gov.uk/id/local-authority/29UP,Tonbridge & Malling Borough Council,7/13/2022,0022026871/1,22026871, 1374.00,On Site Wheelie Washers,01069700,,Other Expenses,Garden Waste Recycling,H34ST000048010,
http://statistics.data.gov.uk/id/local-authority/29UP,Tonbridge & Malling Borough Council,7/13/2022,0022026872/1,22026872, 1125.00,On Site Wheelie Washers,01069700,,Other Expenses,Garden Waste Recycling,H34ST000048010,
http://statistics.data.gov.uk/id/local-authority/29UP,Tonbridge & Malling Borough Council,7/13/2022,0022026873/1,22026873, 845.00,On Site Wheelie Washers,01069700,,Other Expenses,Garden Waste Recycling,H34ST000048010,
http://statistics.data.gov.uk/id/local-authority/29UP,Tonbridge & Malling Borough Council,7/13/2022,0022026874/1,22026874, 1239.50,Vivid Resourcing,01773700,,Temporary Staff,Env Hlth & Hsg Sals&Overheads,D01AVDV0711300,
http://statistics.data.gov.uk/id/local-authority/29UP,Tonbridge & Malling Borough Council,7/13/2022,0031018762/3,31018762, 170.85,British Telecommunications Plc,00012800,,Maintenance - General,Security Services Management,E09GA000040135,
http://statistics.data.gov.uk/id/local-authority/29UP,Tonbridge & Malling Borough Council,7/13/2022,0031018763/3,31018763, 529.44, Connected Kerb Limited,01851400,,Contract Payments,Electric Veh Charging Points,P01EA000009904,
http://statistics.data.gov.uk/id/local-authority/29UP,Tonbridge & Malling Borough Council,7/13/2022,0031018764/1,31018764, 3475.00,DSSL Group Ltd,01839500,,CCTV Monitoring Station,Security Services Management,E09GA000051020,310042803
http://statistics.data.gov.uk/id/local-authority/29UP,Tonbridge & Malling Borough Council,7/13/2022,0031018765/1,31018765, 6016.00,Flowbird Smart City UK Limited,00898700,,Maintenance - General,Parking Off-Street,E10HA000040135,310042829
http://statistics.data.gov.uk/id/local-authority/29UP,Tonbridge & Malling Borough Council,7/13/2022,0031018765/2,31018765, 61.95,Flowbird Smart City UK Limited,00898700,,Maintenance - General,Parking Off-Street,E10HA000040135,310042829
http://statistics.data.gov.uk/id/local-authority/29UP,Tonbridge & Malling Borough Council,7/13/2022,0031018765/3,31018765, 9024.00,Flowbird Smart City UK Limited,00898700,,Maintenance - General,Parking On-Street,E10HD000040135,310042829
http://statistics.data.gov.uk/id/local-authority/29UP,Tonbridge & Malling Borough Council,7/13/2022,0031018765/4,31018765, 92.93,Flowbird Smart City UK Limited,00898700,,Maintenance - General,Parking On-Street,E10HD000040135,310042829
http://statistics.data.gov.uk/id/local-authority/29UP,Tonbridge & Malling Borough Council,7/13/2022,0031018766/3,31018766, 114.30,Imperial Civil Enforcement Solutions,00057200,,Adjudication & Enforcement Ser,Parking Off-Street,E10HA000044230,
http://statistics.data.gov.uk/id/local-authority/29UP,Tonbridge & Malling Borough Council,7/13/2022,0031018767/1,31018767, 321.30,KM Media Group Ltd,00053900,,Advertising General,Parking On-Street,E10HD000044216,310042846
http://statistics.data.gov.uk/id/local-authority/29UP,Tonbridge & Malling Borough Council,7/13/2022,0031018768/1,31018768, 6.17,Npower Ltd,01675800,,Electricity,Parking Off-Street,E10HA000021002,
http://statistics.data.gov.uk/id/local-authority/29UP,Tonbridge & Malling Borough Council,7/13/2022,0031018768/2,31018768, 136.77,Npower Ltd,01675800,,Electricity,Parking Off-Street,E10HA000021002,
http://statistics.data.gov.uk/id/local-authority/29UP,Tonbridge & Malling Borough Council,7/13/2022,0031018769/1,31018769, 1.85,Npower Ltd,01675800,,Electricity,Parking Off-Street,E10HA000021002,
http://statistics.data.gov.uk/id/local-authority/29UP,Tonbridge & Malling Borough Council,7/13/2022,0031018769/2,31018769, 48.45,Npower Ltd,01675800,,Electricity,Parking Off-Street,E10HA000021002,
http://statistics.data.gov.uk/id/local-authority/29UP,Tonbridge & Malling Borough Council,7/13/2022,0031018770/1,31018770, 1.11,Npower Ltd,01675800,,Electricity,Parking Off-Street,E10HA000021002,
http://statistics.data.gov.uk/id/local-authority/29UP,Tonbridge & Malling Borough Council,7/13/2022,0031018770/2,31018770, 29.33,Npower Ltd,01675800,,Electricity,Parking Off-Street,E10HA000021002,
http://statistics.data.gov.uk/id/local-authority/29UP,Tonbridge & Malling Borough Council,7/13/2022,0031018777/1,31018777, 450.00,Wellden Land Surveys,01410600,,Professional Fees,Boro Drainage & Land Drainage,E20MA000044001,310042817
http://statistics.data.gov.uk/id/local-authority/29UP,Tonbridge & Malling Borough Council,7/13/2022,0031018778/1,31018778, 7548.00,Flowbird Smart City UK Limited,00898700,,Maintenance - General,Parking Off-Street,E10HA000040135,310042849
http://statistics.data.gov.uk/id/local-authority/29UP,Tonbridge & Malling Borough Council,7/13/2022,0031018778/2,31018778, 204.00,Flowbird Smart City UK Limited,00898700,,Maintenance - General,Parking Off-Street,E10HA000040135,310042849
http://statistics.data.gov.uk/id/local-authority/29UP,Tonbridge & Malling Borough Council,7/13/2022,0031018778/3,31018778, 1632.00,Flowbird Smart City UK Limited,00898700,,Maintenance - General,Parking On-Street,E10HD000040135,310042849
http://statistics.data.gov.uk/id/local-authority/29UP,Tonbridge & Malling Borough Council,7/13/2022,0032009652/1,32009652, 290.00,REDACTED PERSONAL DATA,01855900,,Application & Appeals,Development Management,A01AB000044194,
http://statistics.data.gov.uk/id/local-authority/29UP,Tonbridge & Malling Borough Council,7/13/2022,0032009653/1,32009653, 967.50,Carrington West Limited,01844500,,Temporary Staff,Planning Sals&Overheads,D01AJDJ0111300,
http://statistics.data.gov.uk/id/local-authority/29UP,Tonbridge & Malling Borough Council,7/13/2022,0032009654/1,32009654, 2590.00,G2 Recruitment Solutions,01786000,,Temporary Staff,Planning Sals&Overheads,D01AJDJ0111300,
http://statistics.data.gov.uk/id/local-authority/29UP,Tonbridge & Malling Borough Council,7/13/2022,0032009655/1,32009655, 3253.93,G2 Recruitment Solutions,01786000,,Temporary Staff,Planning Sals&Overheads,D01AJDJ0111300,
http://statistics.data.gov.uk/id/local-authority/29UP,Tonbridge & Malling Borough Council,7/13/2022,0032009656/1,32009656, 64.95,KCS,00054200,,Stationery,Planning Sals&Overheads,D01AJDJ0143003,320003431
http://statistics.data.gov.uk/id/local-authority/29UP,Tonbridge & Malling Borough Council,7/13/2022,0032009657/1,32009657, 182.07,KM Media Group Ltd,00053900,,Advertising General,Development Management,A01ABZ99944216,320003425
http://statistics.data.gov.uk/id/local-authority/29UP,Tonbridge & Malling Borough Council,7/13/2022,0032009658/1,32009658, 1655.50,The Oyster Partnership,01196400,,Temporary Staff,Planning Sals&Overheads,D01AJDJ0111300,
http://statistics.data.gov.uk/id/local-authority/29UP,Tonbridge & Malling Borough Council,7/13/2022,0032009659/1,32009659, 1627.60,The Oyster Partnership,01196400,,Temporary Staff,Planning Sals&Overheads,D01AJDJ0111300,
http://statistics.data.gov.uk/id/local-authority/29UP,Tonbridge & Malling Borough Council,7/13/2022,0032009660/1,32009660, 1702.00,Vivid Resourcing,01773700,,Temporary Staff,Planning Sals&Overheads,D01AJDJ0111300,
http://statistics.data.gov.uk/id/local-authority/29UP,Tonbridge & Malling Borough Council,7/13/2022,0032009661/1,32009661, 2128.00,Vivid Resourcing,01773700,,Temporary Staff,Planning Sals&Overheads,D01AJDJ0111300,
http://statistics.data.gov.uk/id/local-authority/29UP,Tonbridge & Malling Borough Council,7/13/2022,0032009664/1,32009664, 1644.00,JBA Consulting,01599000,665300941,Development of Local Plan,Development of Local Plan,A01AE000044023,320003369
http://statistics.data.gov.uk/id/local-authority/29UP,Tonbridge & Malling Borough Council,7/13/2022,0041034476/1,41034476, 258.23,KH Recruitment Ltd,01738900,,Temporary Staff,Finance Sals&Overheads,D01AFDF1111300,
http://statistics.data.gov.uk/id/local-authority/29UP,Tonbridge & Malling Borough Council,7/13/2022,0041034478/1,41034478, 98.46,Adelante Software Limited,01393800,812115871,Credit Card Commission,Banking Arrangements,D43QK000044082,
http://statistics.data.gov.uk/id/local-authority/29UP,Tonbridge & Malling Borough Council,7/13/2022,0041034484/1,41034484, 2.95,KCS,00054200,,Stationery,Finance Sals&Overheads,D01AFDF1143003,410032208
http://statistics.data.gov.uk/id/local-authority/29UP,Tonbridge & Malling Borough Council,7/13/2022,0041034484/2,41034484, 45.98,KCS,00054200,,Stationery,Finance Sals&Overheads,D01AFDF1143003,410032208
http://statistics.data.gov.uk/id/local-authority/29UP,Tonbridge & Malling Borough Council,7/13/2022,0041034484/3,41034484, 7.95,KCS,00054200,,Stationery,Finance Sals&Overheads,D01AFDF1143003,410032208
http://statistics.data.gov.uk/id/local-authority/29UP,Tonbridge & Malling Borough Council,7/13/2022,0041034484/4,41034484, 7.95,KCS,00054200,,Stationery,Finance Sals&Overheads,D01AFDF1143003,410032208
http://statistics.data.gov.uk/id/local-authority/29UP,Tonbridge & Malling Borough Council,7/13/2022,0041034485/1,41034485, 278.30,Morgan Hunt UK Ltd,01086900,,Temporary Staff,Finance Sals&Overheads,D01AFDF1111300,
http://statistics.data.gov.uk/id/local-authority/29UP,Tonbridge & Malling Borough Council,7/13/2022,0041034486/1,41034486, 971.25,Morgan Hunt UK Ltd,01086900,,Temporary Staff,Finance Sals&Overheads,D01AFDF1111300,
http://statistics.data.gov.uk/id/local-authority/29UP,Tonbridge & Malling Borough Council,7/13/2022,0041034487/1,41034487, 1910.03,Rundle & Co Ltd,00087200,,Bailiffs Commission,Local Revenue & NNDR Collect,D41QA000044075,
http://statistics.data.gov.uk/id/local-authority/29UP,Tonbridge & Malling Borough Council,7/13/2022,0041034488/1,41034488, 117.01,Rundle & Co Ltd,00087200,,Bailiffs Commission,Local Revenue & NNDR Collect,D41QA000044075,
http://statistics.data.gov.uk/id/local-authority/29UP,Tonbridge & Malling Borough Council,7/13/2022,0041034490/1,41034490, 800.00,Allpay Limited,01816500,,Giro / Swipe Card Charges,Local Revenue & NNDR Collect,D41QA000044083,
http://statistics.data.gov.uk/id/local-authority/29UP,Tonbridge & Malling Borough Council,7/13/2022,0041034491/1,41034491, 800.00,Allpay Limited,01816500,,Giro / Swipe Card Charges,Local Revenue & NNDR Collect,D41QA000044083,
http://statistics.data.gov.uk/id/local-authority/29UP,Tonbridge & Malling Borough Council,7/13/2022,0051008720/1,51008720, 36.00,Cantium Business Solutions Ltd,01698600,,Criminal Records Bureau Checks,Recruitment Expenses,D10DA000013180,510010588
http://statistics.data.gov.uk/id/local-authority/29UP,Tonbridge & Malling Borough Council,7/13/2022,0051008720/2,51008720, 15.00,Cantium Business Solutions Ltd,01698600,,Criminal Records Bureau Checks,Recruitment Expenses,D10DA000013180,510010588
http://statistics.data.gov.uk/id/local-authority/29UP,Tonbridge & Malling Borough Council,7/13/2022,0051008721/1,51008721, 995.00,Ocean Media Group Ltd,01732900,,Recruitment Advertising,Recruitment Expenses,D10DADV0913110,510010585
http://statistics.data.gov.uk/id/local-authority/29UP,Tonbridge & Malling Borough Council,7/13/2022,0051008722/1,51008722, 87.50,DM Training Services,01854200,,Ext Fees/Prof & Tech,Training,D10DCDF1113561,
http://statistics.data.gov.uk/id/local-authority/29UP,Tonbridge & Malling Borough Council,7/18/2022,0041034509/1,41034509, 59.95,Allpay Limited,01816500,,Giro / Swipe Card Charges,Local Revenue & NNDR Collect,D41QA000044083,
http://statistics.data.gov.uk/id/local-authority/29UP,Tonbridge & Malling Borough Council,7/19/2022,0022026880/1,22026880, 224.52,Bulb Energy Ltd,01799000,214948301,Electricity,Homelessness,C01AA000021002,
http://statistics.data.gov.uk/id/local-authority/29UP,Tonbridge & Malling Borough Council,7/19/2022,0041034518/1,41034518, 2895.00,Information Commisioners Office,01417900,,Data Protection Act Registrati,Admin & Prop Sals&Overheads,D01AADA0048013,
http://statistics.data.gov.uk/id/local-authority/29UP,Tonbridge & Malling Borough Council,7/20/2022,0011044618/1,11044618, 2555.00,PV Environmental Surveys,00987200,,BRREP General Maintenance,Shops & Maisonettes,M15NAP10001900,110069518
http://statistics.data.gov.uk/id/local-authority/29UP,Tonbridge & Malling Borough Council,7/20/2022,0011044619/1,11044619, 569.00,DORMA UK Ltd,00413500,549361128,BRREP Servicing-entrance doors,Tonbridge Castle / CAB,M15KFP20001927,110069564
http://statistics.data.gov.uk/id/local-authority/29UP,Tonbridge & Malling Borough Council,7/20/2022,0011044620/1,11044620, 845.00,GreenFish Consulting part of JCML Consul,01627700,,Estate Management Charge,Land Review,D40PS000020400,110069625
http://statistics.data.gov.uk/id/local-authority/29UP,Tonbridge & Malling Borough Council,7/20/2022,0011044621/1,11044621, 260.00,Willow Pumps Ltd,00114100,,BRREP Servicing - Pumping Stn,Ton Sportsgrnd Bldgs / Toilets,M15HCP20001931,110069638
http://statistics.data.gov.uk/id/local-authority/29UP,Tonbridge & Malling Borough Council,7/20/2022,0011044622/1,11044622, 56.00,Willow Pumps Ltd,00114100,,BRREP Servicing - Pumping Stn,Tonbridge Swimming Pool,M15HBP20001931,110069172
http://statistics.data.gov.uk/id/local-authority/29UP,Tonbridge & Malling Borough Council,7/20/2022,0011044622/2,11044622, 112.00,Willow Pumps Ltd,00114100,,BRREP Servicing - Pumping Stn,Ton Sportsgrnd Bldgs / Toilets,M15HCP20001931,110069172
http://statistics.data.gov.uk/id/local-authority/29UP,Tonbridge & Malling Borough Council,7/20/2022,0011044622/3,11044622, 112.00,Willow Pumps Ltd,00114100,,BRREP Servicing - Pumping Stn,Vale Rise Depot,M15LCP20001931,110069172
http://statistics.data.gov.uk/id/local-authority/29UP,Tonbridge & Malling Borough Council,7/20/2022,0011044623/1,11044623, 620.00,Royal Cars,01857400,,Hospitality,Mayoral & Other Member Support,D29LX000048003,
http://statistics.data.gov.uk/id/local-authority/29UP,Tonbridge & Malling Borough Council,7/20/2022,0011044624/1,11044624, 110.00,Royal Cars,01857400,,Hospitality,Mayoral & Other Member Support,D29LX000048003,
http://statistics.data.gov.uk/id/local-authority/29UP,Tonbridge & Malling Borough Council,7/20/2022,0011044625/3,11044625, 215.99,Prosec General Security Ltd,00810600,,Office Security,Ton Castle Council Chamber,D21FC000044047,
http://statistics.data.gov.uk/id/local-authority/29UP,Tonbridge & Malling Borough Council,7/20/2022,0011044625/4,11044625, 961.88,Prosec General Security Ltd,00810600,,Office Security,Cleaning & Security,D21FD000044047,
http://statistics.data.gov.uk/id/local-authority/29UP,Tonbridge & Malling Borough Council,7/20/2022,0011044625/5,11044625, 2754.00,Prosec General Security Ltd,00810600,,Office Security,Tonbridge Gateway,D23TG000044047,
http://statistics.data.gov.uk/id/local-authority/29UP,Tonbridge & Malling Borough Council,7/20/2022,0011044626/1,11044626, 30.00,The Mayor's Charity Appeal,00943800,,Hospitality,Mayoral & Other Member Support,D29LX000048003,
http://statistics.data.gov.uk/id/local-authority/29UP,Tonbridge & Malling Borough Council,7/20/2022,0011044627/3,11044627, 154.10,Biffa Waste Services Ltd,01284500,,Trade Refuse Charges,Cleaning & Security,D21FD000044008,
http://statistics.data.gov.uk/id/local-authority/29UP,Tonbridge & Malling Borough Council,7/20/2022,0011044628/3,11044628, 74.72,Biffa Waste Services Ltd,01284500,,Trade Refuse Charges,Cleaning & Security,D21FD000044008,
http://statistics.data.gov.uk/id/local-authority/29UP,Tonbridge & Malling Borough Council,7/20/2022,0011044629/3,11044629, 92.46,Biffa Waste Services Ltd,01284500,,Trade Refuse Charges,Cleaning & Security,D21FD000044008,
http://statistics.data.gov.uk/id/local-authority/29UP,Tonbridge & Malling Borough Council,7/20/2022,0011044630/3,11044630, 53.40,Biffa Waste Services Ltd,01284500,,Trade Refuse Charges,Cleaning & Security,D21FD000044008,
http://statistics.data.gov.uk/id/local-authority/29UP,Tonbridge & Malling Borough Council,7/20/2022,0011044631/3,11044631, 53.40,Biffa Waste Services Ltd,01284500,,Trade Refuse Charges,Cleaning & Security,D21FD000044008,
http://statistics.data.gov.uk/id/local-authority/29UP,Tonbridge & Malling Borough Council,7/20/2022,0011044632/3,11044632, 182.90,Biffa Waste Services Ltd,01284500,,Trade Refuse Charges,Cleaning & Security,D21FD000044008,
http://statistics.data.gov.uk/id/local-authority/29UP,Tonbridge & Malling Borough Council,7/20/2022,0011044633/1,11044633, 260.00,REDACTED PERSONAL DATA,01750300,,Economic Development & Regen,Eco Dev & Reg Gen Bus Support,D52TD000047027,
http://statistics.data.gov.uk/id/local-authority/29UP,Tonbridge & Malling Borough Council,7/20/2022,0011044634/3,11044634, 359.14,Canon (UK) Limited,00298700,,Purchases - Paper,Printing,D22GA000040102,
http://statistics.data.gov.uk/id/local-authority/29UP,Tonbridge & Malling Borough Council,7/20/2022,0011044635/3,11044635, 714.18,KCS,00054200,,Gas,Buildings,D21FEDD6021003,
http://statistics.data.gov.uk/id/local-authority/29UP,Tonbridge & Malling Borough Council,7/20/2022,0011044636/3,11044636, 1359.99,KCS,00054200,,Gas,Buildings,D21FEDD6021003,
http://statistics.data.gov.uk/id/local-authority/29UP,Tonbridge & Malling Borough Council,7/20/2022,0011044637/1,11044637, 487.28,Scottish Water Business Stream Ltd,01641100,,Sewerage Charges,Buildings,D21FEDD6024003,
http://statistics.data.gov.uk/id/local-authority/29UP,Tonbridge & Malling Borough Council,7/20/2022,0011044638/1,11044638, 544.88,Scottish Water Business Stream Ltd,01641100,,Sewerage Charges,Buildings,D21FEDD1024003,
http://statistics.data.gov.uk/id/local-authority/29UP,Tonbridge & Malling Borough Council,7/20/2022,0011044639/3,11044639, 14.85,KCS,00054200,,Stationery,Admin & Prop Sals&Overheads,D01AA000043003,
http://statistics.data.gov.uk/id/local-authority/29UP,Tonbridge & Malling Borough Council,7/20/2022,0011044640/3,11044640, 181.30,Speedy Services (Speedy Hire),01840400,,BRREP General Maintenance,Angel Centre,M15HAP10001900,
http://statistics.data.gov.uk/id/local-authority/29UP,Tonbridge & Malling Borough Council,7/20/2022,0011044641/3,11044641, 3000.00,Westco Communications/Westco Trading Ltd,01844400,,Consultancy Fees,Personnel Sals&Overheads,D01ABDB0044011,
http://statistics.data.gov.uk/id/local-authority/29UP,Tonbridge & Malling Borough Council,7/20/2022,0011044642/3,11044642, 589.41,KH Recruitment Ltd,01738900,,Temporary Staff,Personnel Sals&Overheads,D01ABDB0311300,
http://statistics.data.gov.uk/id/local-authority/29UP,Tonbridge & Malling Borough Council,7/20/2022,0011044643/3,11044643, 9.70,REDACTED PERSONAL DATA,01681100,,Hospitality,Mayoral & Other Member Support,D29LX000048003,
http://statistics.data.gov.uk/id/local-authority/29UP,Tonbridge & Malling Borough Council,7/20/2022,0011044643/4,11044643, 3.00,REDACTED PERSONAL DATA,01681100,,Hospitality,Mayoral & Other Member Support,D29LX000048003,
http://statistics.data.gov.uk/id/local-authority/29UP,Tonbridge & Malling Borough Council,7/20/2022,0011044644/3,11044644, 10175.00,Francis Taylor Building,01688700,,Legal Fees,Legal Sals&Overheads,D01ARDR0044002,
http://statistics.data.gov.uk/id/local-authority/29UP,Tonbridge & Malling Borough Council,7/20/2022,0011044645/3,11044645, 1217.80,Sellick Partnership Group Limited,01336800,,Temporary Staff,Legal Sals&Overheads,D01ARDR0011300,
http://statistics.data.gov.uk/id/local-authority/29UP,Tonbridge & Malling Borough Council,7/20/2022,0011044646/1,11044646, 16998.64,Thomson Reuters,01323200,,Reference Books & Publications,Legal Sals&Overheads,D01AR000043010,
http://statistics.data.gov.uk/id/local-authority/29UP,Tonbridge & Malling Borough Council,7/20/2022,0011044648/1,11044648, 192.00,Spy Alarms Ltd,01608800,,BRREP Servicing-IntruderAlarm,Leybourne Lakes Country Park,M15HLP20001939,110069606
http://statistics.data.gov.uk/id/local-authority/29UP,Tonbridge & Malling Borough Council,7/20/2022,0011044649/1,11044649, 250.00,Quality Fire Safety Management Ltd (QFSM,01851800,,BRREP Fire Safety Risk Assess,Leybourne Lakes Country Park,M15HLP30001999,110069611
http://statistics.data.gov.uk/id/local-authority/29UP,Tonbridge & Malling Borough Council,7/20/2022,0011044650/1,11044650, 1128.00,Chillmech Limited,00978700,,BRREP Servicing-Air Condition,Angel Centre,M15HAP20001935,110069500
http://statistics.data.gov.uk/id/local-authority/29UP,Tonbridge & Malling Borough Council,7/20/2022,0011044651/1,11044651, 183.00,Chillmech Limited,00978700,,BRREP Servicing-Air Condition,Leis Man Poult Wood Golf Centr,M15HEP20001935,110069500
http://statistics.data.gov.uk/id/local-authority/29UP,Tonbridge & Malling Borough Council,7/20/2022,0011044652/1,11044652, 450.00,Chillmech Limited,00978700,,BRREP Servicing-Air Condition,Tonbridge Swimming Pool,M15HBP20001935,110069500
http://statistics.data.gov.uk/id/local-authority/29UP,Tonbridge & Malling Borough Council,7/20/2022,0011044653/1,11044653, 1695.00,Chillmech Limited,00978700,,BRREP Servicing-Air Condition,Larkfield Leisure Centre,M15HDP20001935,110069500
http://statistics.data.gov.uk/id/local-authority/29UP,Tonbridge & Malling Borough Council,7/20/2022,0011044654/1,11044654, 696.74,Security & Electronic Solutions Ltd,01379500,,BRREP Servicing - CCTV,Larkfield Leisure Centre,M15HDP20001952,110069646
http://statistics.data.gov.uk/id/local-authority/29UP,Tonbridge & Malling Borough Council,7/20/2022,0011044655/1,11044655, 696.74,Security & Electronic Solutions Ltd,01379500,,BRREP Servicing - CCTV,Tonbridge Swimming Pool,M15HBP20001952,110069647
http://statistics.data.gov.uk/id/local-authority/29UP,Tonbridge & Malling Borough Council,7/20/2022,0011044656/1,11044656, 443.61,Security & Electronic Solutions Ltd,01379500,,BRREP Servicing - CCTV,Leis Man Poult Wood Golf Centr,M15HEP20001952,110069651
http://statistics.data.gov.uk/id/local-authority/29UP,Tonbridge & Malling Borough Council,7/20/2022,0011044657/1,11044657, 380.31,Security & Electronic Solutions Ltd,01379500,,BRREP Servicing - CCTV,Angel Centre,M15HAP20001952,110069648
http://statistics.data.gov.uk/id/local-authority/29UP,Tonbridge & Malling Borough Council,7/20/2022,0011044658/1,11044658, 520.00,G C Industrial Heating Services,00578100,,BRREP Servicing - Sadia Tea,Gibson Building East,M15KGP20001932,110069624
http://statistics.data.gov.uk/id/local-authority/29UP,Tonbridge & Malling Borough Council,7/20/2022,0011044659/1,11044659, 120.00,G C Industrial Heating Services,00578100,,BRREP Response - General,Gibson Building East,M15KGP50001997,110069579
http://statistics.data.gov.uk/id/local-authority/29UP,Tonbridge & Malling Borough Council,7/20/2022,0011044660/1,11044660, 8884.35,M Jenner & Son,00905500,,Other Expenses,Homeless Accommodation,P03AX000009908,110069472
http://statistics.data.gov.uk/id/local-authority/29UP,Tonbridge & Malling Borough Council,7/20/2022,0011044661/1,11044661, 96.00,Spy Alarms Ltd,01608800,,BRREP Servicing-IntruderAlarm,Leybourne Lakes Country Park,M15HLP20001939,110069606
http://statistics.data.gov.uk/id/local-authority/29UP,Tonbridge & Malling Borough Council,7/20/2022,0011044662/1,11044662, 990.00,Comfort Controls  (Service) Limited,01226700,,BRREP BMS System Mntce/Upgrade,Tonbridge Swimming Pool,M15HBP20001912,110069340
http://statistics.data.gov.uk/id/local-authority/29UP,Tonbridge & Malling Borough Council,7/20/2022,0011044663/1,11044663, 552.00,HOB Mechanical Services Ltd,01706000,,BRREP BMS System Mntce/Upgrade,Larkfield Leisure Centre,M15HDP20001912,110069383
http://statistics.data.gov.uk/id/local-authority/29UP,Tonbridge & Malling Borough Council,7/20/2022,0011044663/2,11044663, 2479.00,HOB Mechanical Services Ltd,01706000,,BRREP Servicing - boilers,Larkfield Leisure Centre,M15HDP20001929,110069383
http://statistics.data.gov.uk/id/local-authority/29UP,Tonbridge & Malling Borough Council,7/20/2022,0011044663/3,11044663, 378.26,HOB Mechanical Services Ltd,01706000,,BRREP Servicing - air handling,Larkfield Leisure Centre,M15HDP20001936,110069383
http://statistics.data.gov.uk/id/local-authority/29UP,Tonbridge & Malling Borough Council,7/20/2022,0011044664/1,11044664, 325.00,SJC Door Security Installations,01278600,,Purchases - Identity Cards,Admin & Prop Sals&Overheads,D01AADA0240104,110069631
http://statistics.data.gov.uk/id/local-authority/29UP,Tonbridge & Malling Borough Council,7/20/2022,0011044664/2,11044664, 209.85,SJC Door Security Installations,01278600,,Purchases - Identity Cards,Admin & Prop Sals&Overheads,D01AADA0240104,110069631
http://statistics.data.gov.uk/id/local-authority/29UP,Tonbridge & Malling Borough Council,7/20/2022,0011044665/1,11044665, 157.22,BBC Fire Protection Ltd,00008800,342427963,BRREP Servicing - Gas Ext Syst,Gibson Building West,M15KBP20001979,110069633
http://statistics.data.gov.uk/id/local-authority/29UP,Tonbridge & Malling Borough Council,7/20/2022,0011044666/1,11044666, 1871.20,Chillmech Limited,00978700,,BRREP Servicing-Air Condition,Angel Centre,M15HAP20001935,110069500
http://statistics.data.gov.uk/id/local-authority/29UP,Tonbridge & Malling Borough Council,7/20/2022,0012008428/1,12008428, 1141.91,NEC Software Solutions UK Ltd,01073900,202159745,Software Hire & Support,Information Technology,D27KD000044059,410032191
http://statistics.data.gov.uk/id/local-authority/29UP,Tonbridge & Malling Borough Council,7/20/2022,0012008429/1,12008429, 98.00,Sectigo Limited - European Office,01214500,,Purchases,Information Technology,D27KD000040101,410032224
http://statistics.data.gov.uk/id/local-authority/29UP,Tonbridge & Malling Borough Council,7/20/2022,0012008430/1,12008430, 2.00,CCS Media Ltd,00018000,,Delivery Expenses,Information Technology,D27KD000044069,410032227
http://statistics.data.gov.uk/id/local-authority/29UP,Tonbridge & Malling Borough Council,7/20/2022,0012008430/2,12008430, 899.95,CCS Media Ltd,00018000,,Initial Furniture & Equipment,Capital Renewals IT,P06FBFB1009906,410032227
http://statistics.data.gov.uk/id/local-authority/29UP,Tonbridge & Malling Borough Council,7/20/2022,0012008431/1,12008431, 2.00,CCS Media Ltd,00018000,,Delivery Expenses,Information Technology,D27KD000044069,410032228
http://statistics.data.gov.uk/id/local-authority/29UP,Tonbridge & Malling Borough Council,7/20/2022,0012008431/2,12008431, 899.95,CCS Media Ltd,00018000,,Initial Furniture & Equipment,Capital Renewals IT,P06FBFB1009906,410032228
http://statistics.data.gov.uk/id/local-authority/29UP,Tonbridge & Malling Borough Council,7/20/2022,0012008432/10,12008432, 3.00,O2 UK Ltd,01268000,,Mobile Telephones,Technical Sals&Overheads,D01AEDE0045013,
http://statistics.data.gov.uk/id/local-authority/29UP,Tonbridge & Malling Borough Council,7/20/2022,0012008432/11,12008432, 6.00,O2 UK Ltd,01268000,,Mobile Telephones,Technical Sals&Overheads,D01AEDE0145013,
http://statistics.data.gov.uk/id/local-authority/29UP,Tonbridge & Malling Borough Council,7/20/2022,0012008432/12,12008432, 9.00,O2 UK Ltd,01268000,,Mobile Telephones,Technical Sals&Overheads,D01AEDE0245013,
http://statistics.data.gov.uk/id/local-authority/29UP,Tonbridge & Malling Borough Council,7/20/2022,0012008432/13,12008432, 44.92,O2 UK Ltd,01268000,,Mobile Telephones,Technical Sals&Overheads,D01AEDE0445013,
http://statistics.data.gov.uk/id/local-authority/29UP,Tonbridge & Malling Borough Council,7/20/2022,0012008432/14,12008432, 3.00,O2 UK Ltd,01268000,,Mobile Telephones,Technical Sals&Overheads,D01AEDE0545013,
http://statistics.data.gov.uk/id/local-authority/29UP,Tonbridge & Malling Borough Council,7/20/2022,0012008432/15,12008432, 12.00,O2 UK Ltd,01268000,,Mobile Telephones,Finance Sals&Overheads,D01AFDF0045013,
http://statistics.data.gov.uk/id/local-authority/29UP,Tonbridge & Malling Borough Council,7/20/2022,0012008432/16,12008432, 6.00,O2 UK Ltd,01268000,,Mobile Telephones,Finance Sals&Overheads,D01AFDF0945013,
http://statistics.data.gov.uk/id/local-authority/29UP,Tonbridge & Malling Borough Council,7/20/2022,0012008432/17,12008432, 12.00,O2 UK Ltd,01268000,,Mobile Telephones,St Scene & Leis Sals&Overheads,D01AGDG0045013,
http://statistics.data.gov.uk/id/local-authority/29UP,Tonbridge & Malling Borough Council,7/20/2022,0012008432/18,12008432, 12.20,O2 UK Ltd,01268000,,Mobile Telephones,St Scene & Leis Sals&Overheads,D01AGDG0145013,
http://statistics.data.gov.uk/id/local-authority/29UP,Tonbridge & Malling Borough Council,7/20/2022,0012008432/19,12008432, 9.00,O2 UK Ltd,01268000,,Mobile Telephones,St Scene & Leis Sals&Overheads,D01AGDG0445013,
http://statistics.data.gov.uk/id/local-authority/29UP,Tonbridge & Malling Borough Council,7/20/2022,0012008432/20,12008432, 37.68,O2 UK Ltd,01268000,,Mobile Telephones,St Scene & Leis Sals&Overheads,D01AGDG2045013,
http://statistics.data.gov.uk/id/local-authority/29UP,Tonbridge & Malling Borough Council,7/20/2022,0012008432/21,12008432, 9.00,O2 UK Ltd,01268000,,Mobile Telephones,Planning Sals&Overheads,D01AJDJ0045013,
http://statistics.data.gov.uk/id/local-authority/29UP,Tonbridge & Malling Borough Council,7/20/2022,0012008432/22,12008432, 12.30,O2 UK Ltd,01268000,,Mobile Telephones,Planning Sals&Overheads,D01AJDJ0245013,
http://statistics.data.gov.uk/id/local-authority/29UP,Tonbridge & Malling Borough Council,7/20/2022,0012008432/23,12008432, 6.00,O2 UK Ltd,01268000,,Mobile Telephones,Legal Sals&Overheads,D01ARDR0045013,
http://statistics.data.gov.uk/id/local-authority/29UP,Tonbridge & Malling Borough Council,7/20/2022,0012008432/24,12008432, 12.00,O2 UK Ltd,01268000,,Mobile Telephones,Legal Sals&Overheads,D01ARDR0445013,
http://statistics.data.gov.uk/id/local-authority/29UP,Tonbridge & Malling Borough Council,7/20/2022,0012008432/25,12008432, 3.00,O2 UK Ltd,01268000,,Mobile Telephones,Legal Sals&Overheads,D01ARDR0745013,
http://statistics.data.gov.uk/id/local-authority/29UP,Tonbridge & Malling Borough Council,7/20/2022,0012008432/26,12008432, 3.00,O2 UK Ltd,01268000,,Mobile Telephones,Env Hlth & Hsg Sals&Overheads,D01AVDV0045013,
http://statistics.data.gov.uk/id/local-authority/29UP,Tonbridge & Malling Borough Council,7/20/2022,0012008432/27,12008432, 9.00,O2 UK Ltd,01268000,,Mobile Telephones,Env Hlth & Hsg Sals&Overheads,D01AVDV0145013,
http://statistics.data.gov.uk/id/local-authority/29UP,Tonbridge & Malling Borough Council,7/20/2022,0012008432/28,12008432, 6.00,O2 UK Ltd,01268000,,Mobile Telephones,Env Hlth & Hsg Sals&Overheads,D01AVDV0345013,
http://statistics.data.gov.uk/id/local-authority/29UP,Tonbridge & Malling Borough Council,7/20/2022,0012008432/29,12008432, 3.00,O2 UK Ltd,01268000,,Mobile Telephones,Env Hlth & Hsg Sals&Overheads,D01AVDV0745013,
http://statistics.data.gov.uk/id/local-authority/29UP,Tonbridge & Malling Borough Council,7/20/2022,0012008432/3,12008432, 3.00,O2 UK Ltd,01268000,,Telephones - General,Open Spaces & Amenity Areas,B22LE000045010,
http://statistics.data.gov.uk/id/local-authority/29UP,Tonbridge & Malling Borough Council,7/20/2022,0012008432/30,12008432, 6.00,O2 UK Ltd,01268000,,Mobile Telephones,Env Hlth & Hsg Sals&Overheads,D01AVDV0945013,
http://statistics.data.gov.uk/id/local-authority/29UP,Tonbridge & Malling Borough Council,7/20/2022,0012008432/31,12008432, 9.10,O2 UK Ltd,01268000,,Mobile Telephones,Customer Services,D23CS000045013,
http://statistics.data.gov.uk/id/local-authority/29UP,Tonbridge & Malling Borough Council,7/20/2022,0012008432/32,12008432, 3.10,O2 UK Ltd,01268000,,Mobile Telephones,Tonbridge Gateway,D23TG000045013,
http://statistics.data.gov.uk/id/local-authority/29UP,Tonbridge & Malling Borough Council,7/20/2022,0012008432/33,12008432, 627.00,O2 UK Ltd,01268000,,Leased Lines & Modems,Information Technology,D27KD000045011,
http://statistics.data.gov.uk/id/local-authority/29UP,Tonbridge & Malling Borough Council,7/20/2022,0012008432/34,12008432, 3.00,O2 UK Ltd,01268000,,Mobile Telephones,Mayoral & Other Member Support,D29LX000045013,
http://statistics.data.gov.uk/id/local-authority/29UP,Tonbridge & Malling Borough Council,7/20/2022,0012008432/35,12008432, 3.10,O2 UK Ltd,01268000,,Emergency Out of Hours Recharg,Refuse Collection,H20SA000045030,
http://statistics.data.gov.uk/id/local-authority/29UP,Tonbridge & Malling Borough Council,7/20/2022,0012008432/36,12008432, 3.00,O2 UK Ltd,01268000,,Emergency Out of Hours Recharg,Street Scene,H23SD000045030,
http://statistics.data.gov.uk/id/local-authority/29UP,Tonbridge & Malling Borough Council,7/20/2022,0012008432/4,12008432, 6.00,O2 UK Ltd,01268000,,Mobile Telephones,Admin & Prop Sals&Overheads,D01AADA0045013,
http://statistics.data.gov.uk/id/local-authority/29UP,Tonbridge & Malling Borough Council,7/20/2022,0012008432/5,12008432, 3.00,O2 UK Ltd,01268000,,Mobile Telephones,Admin & Prop Sals&Overheads,D01AADA1045013,
http://statistics.data.gov.uk/id/local-authority/29UP,Tonbridge & Malling Borough Council,7/20/2022,0012008432/6,12008432, 9.00,O2 UK Ltd,01268000,,Mobile Telephones,Admin & Prop Sals&Overheads,D01AADA1245013,
http://statistics.data.gov.uk/id/local-authority/29UP,Tonbridge & Malling Borough Council,7/20/2022,0012008432/7,12008432, 3.00,O2 UK Ltd,01268000,,Mobile Telephones,Chief Exec Sals&Overheads,D01ACDC0045013,
http://statistics.data.gov.uk/id/local-authority/29UP,Tonbridge & Malling Borough Council,7/20/2022,0012008432/8,12008432, 3.00,O2 UK Ltd,01268000,,Mobile Telephones,Chief Exec Sals&Overheads,D01ACDC0145013,
http://statistics.data.gov.uk/id/local-authority/29UP,Tonbridge & Malling Borough Council,7/20/2022,0012008432/9,12008432, 3.00,O2 UK Ltd,01268000,,Mobile Telephones,Chief Exec Sals&Overheads,D01ACDC0245013,
http://statistics.data.gov.uk/id/local-authority/29UP,Tonbridge & Malling Borough Council,7/20/2022,0012008434/1,12008434, 630.33,Epos Group (Kent),01017800,,Software Hire & Support,Information Technology,D27KD000044059,
http://statistics.data.gov.uk/id/local-authority/29UP,Tonbridge & Malling Borough Council,7/20/2022,0012008435/1,12008435, 79.86,Imperial Civil Enforcement Solutions,00057200,,Maintenance - Ancillary Equip,Information Technology,D27KD000040137,410032221
http://statistics.data.gov.uk/id/local-authority/29UP,Tonbridge & Malling Borough Council,7/20/2022,0012008435/2,12008435, 452.97,Imperial Civil Enforcement Solutions,00057200,,Software Hire & Support,Information Technology,D27KD000044059,410032221
http://statistics.data.gov.uk/id/local-authority/29UP,Tonbridge & Malling Borough Council,7/20/2022,0012008435/3,12008435, 1491.00,Imperial Civil Enforcement Solutions,00057200,,Software Hire & Support,Information Technology,D27KD000044059,410032221
http://statistics.data.gov.uk/id/local-authority/29UP,Tonbridge & Malling Borough Council,7/20/2022,0012008435/4,12008435, 8103.36,Imperial Civil Enforcement Solutions,00057200,,Software Hire & Support,Information Technology,D27KD000044059,410032221
http://statistics.data.gov.uk/id/local-authority/29UP,Tonbridge & Malling Borough Council,7/20/2022,0012008435/5,12008435, 2379.19,Imperial Civil Enforcement Solutions,00057200,,Software Hire & Support,Information Technology,D27KD000044059,410032221
http://statistics.data.gov.uk/id/local-authority/29UP,Tonbridge & Malling Borough Council,7/20/2022,0012008435/6,12008435, 7026.50,Imperial Civil Enforcement Solutions,00057200,,Software Hire & Support,Information Technology,D27KD000044059,410032221
http://statistics.data.gov.uk/id/local-authority/29UP,Tonbridge & Malling Borough Council,7/20/2022,0012008435/7,12008435, 1268.89,Imperial Civil Enforcement Solutions,00057200,,Software Hire & Support,Information Technology,D27KD000044059,410032221
http://statistics.data.gov.uk/id/local-authority/29UP,Tonbridge & Malling Borough Council,7/20/2022,0012008435/8,12008435, 258.34,Imperial Civil Enforcement Solutions,00057200,,Software Hire & Support,Information Technology,D27KD000044059,410032221
http://statistics.data.gov.uk/id/local-authority/29UP,Tonbridge & Malling Borough Council,7/20/2022,0012008435/9,12008435, 8269.08,Imperial Civil Enforcement Solutions,00057200,,Software Hire & Support,Information Technology,D27KD000044059,410032221
http://statistics.data.gov.uk/id/local-authority/29UP,Tonbridge & Malling Borough Council,7/20/2022,0021038029/1,21038029, 400.00,Studio 23 Photography,01856900,,Events Support,Events Development,B41TJ000044041,
http://statistics.data.gov.uk/id/local-authority/29UP,Tonbridge & Malling Borough Council,7/20/2022,0021038030/3,21038030, 47.41,REDACTED PERSONAL DATA,01217300,,Youth Initiatives,Youth Partnerships,B33PG000048124,
http://statistics.data.gov.uk/id/local-authority/29UP,Tonbridge & Malling Borough Council,7/20/2022,0021038030/4,21038030, 2.00,REDACTED PERSONAL DATA,01217300,,Youth Initiatives,Youth Partnerships,B33PG000048124,
http://statistics.data.gov.uk/id/local-authority/29UP,Tonbridge & Malling Borough Council,7/20/2022,0021038033/1,21038033, 310.00,Forestry First,01834900,,Maintenance of Grounds,Cemetery,B26MP000020402,210056785
http://statistics.data.gov.uk/id/local-authority/29UP,Tonbridge & Malling Borough Council,7/20/2022,0021038034/1,21038034, 685.66,Atlas Facilities Managment Limited ,01075900,,Gates / Security,Patrolling,B22LF000044017,210056716
http://statistics.data.gov.uk/id/local-authority/29UP,Tonbridge & Malling Borough Council,7/20/2022,0021038035/1,21038035, 146.29,B&Q/Screwfix Direct(TradeUKAccount),00141300,,Maintenance of Grounds,Open Spaces & Amenity Areas,B22LE000020402,
http://statistics.data.gov.uk/id/local-authority/29UP,Tonbridge & Malling Borough Council,7/20/2022,0021038037/1,21038037, 11.50,South East Water Ltd,01330300,,Maintenance of Grounds,Haysden Country Park,B22LC000020402,210056791
http://statistics.data.gov.uk/id/local-authority/29UP,Tonbridge & Malling Borough Council,7/20/2022,0021038038/1,21038038, 2120.00,Sevenoaks Environmental Consultancy,01849800,,Contract Payments,Ton Race Rugby Pitch Drainage,P05DE000009904,210056794
http://statistics.data.gov.uk/id/local-authority/29UP,Tonbridge & Malling Borough Council,7/20/2022,0021038039/1,21038039, 2500.00,Sevenoaks Environmental Consultancy,01849800,,Contract Payments,Ton Race Rugby Pitch Drainage,P05DE000009904,210056797
http://statistics.data.gov.uk/id/local-authority/29UP,Tonbridge & Malling Borough Council,7/20/2022,0022026875/1,22026875, 336.00,Britains Limited,01743900,,Repairs & Mtce to Buildings,Homelessness,C01AA000020101,220003247
http://statistics.data.gov.uk/id/local-authority/29UP,Tonbridge & Malling Borough Council,7/20/2022,0022026877/3,22026877, 297.64,British Gas,01148500,,Electricity,Homelessness,C01AA000021002,
http://statistics.data.gov.uk/id/local-authority/29UP,Tonbridge & Malling Borough Council,7/20/2022,0022026878/1,22026878, 180.00,LA Personal Fitness,01782300,,Healthy Living Initiatives,Public Health - Healthy Living,H40SYVH0048145,220003246
http://statistics.data.gov.uk/id/local-authority/29UP,Tonbridge & Malling Borough Council,7/20/2022,0022026879/1,22026879, 673.97,KCC - L.A.S.E.R Commercial Services ,00184300,,Air Quality Monitoring,Environmental Protection,H32SN000054016,
http://statistics.data.gov.uk/id/local-authority/29UP,Tonbridge & Malling Borough Council,7/20/2022,0022026881/3,22026881, 490.00,Countrystyle Group,00835900,781981681,Collection of Card,Dry Recycling,H34SR000054008,
http://statistics.data.gov.uk/id/local-authority/29UP,Tonbridge & Malling Borough Council,7/20/2022,0022026882/1,22026882, 961.12,Town & Country Housing Group,01385400,,Other Expenses,Disabled Facilities Grant Mand,P03AC000009908,
http://statistics.data.gov.uk/id/local-authority/29UP,Tonbridge & Malling Borough Council,7/20/2022,0022026883/1,22026883, 6632.73,Truden Disabled Adapts Ltd,01857800,,Other Expenses,Disabled Facilities Grant Mand,P03AC000009908,
http://statistics.data.gov.uk/id/local-authority/29UP,Tonbridge & Malling Borough Council,7/20/2022,0022026884/1,22026884, 25.14,Bulb Energy Ltd,01799000,214948301,Electricity,Homelessness,C01AA000021002,
http://statistics.data.gov.uk/id/local-authority/29UP,Tonbridge & Malling Borough Council,7/20/2022,0022026885/1,22026885, 971.50,Vivid Resourcing,01773700,,Temporary Staff,Env Hlth & Hsg Sals&Overheads,D01AVDV0711300,
http://statistics.data.gov.uk/id/local-authority/29UP,Tonbridge & Malling Borough Council,7/20/2022,0031018783/1,31018783, 1484.07,CDER Group,01773300,,Adjudication & Enforcement Ser,Parking Off-Street,E10HA000044230,
http://statistics.data.gov.uk/id/local-authority/29UP,Tonbridge & Malling Borough Council,7/20/2022,0031018787/1,31018787, 299.88,KM Media Group Ltd,00053900,,Advertising General,Parking On-Street,E10HD000044216,310042838
http://statistics.data.gov.uk/id/local-authority/29UP,Tonbridge & Malling Borough Council,7/20/2022,0031018788/1,31018788, 428.40,KM Media Group Ltd,00053900,,Advertising General,Parking Off-Street,E10HA000044216,310042838
http://statistics.data.gov.uk/id/local-authority/29UP,Tonbridge & Malling Borough Council,7/20/2022,0031018790/1,31018790, 75.38,Shell U.K. Oil Products Limited,01673300,,"Petrol, Diesel & Oil",Patrolling,B22LF000030106,
http://statistics.data.gov.uk/id/local-authority/29UP,Tonbridge & Malling Borough Council,7/20/2022,0031018790/2,31018790, 141.20,Shell U.K. Oil Products Limited,01673300,,"Petrol, Diesel & Oil",Parking Off-Street,E10HA000030106,
http://statistics.data.gov.uk/id/local-authority/29UP,Tonbridge & Malling Borough Council,7/20/2022,0031018790/3,31018790, 141.19,Shell U.K. Oil Products Limited,01673300,,"Petrol, Diesel & Oil",Parking On-Street,E10HD000030106,
http://statistics.data.gov.uk/id/local-authority/29UP,Tonbridge & Malling Borough Council,7/20/2022,0032009665/1,32009665, 1612.50,Carrington West Limited,01844500,,Temporary Staff,Planning Sals&Overheads,D01AJDJ0111300,
http://statistics.data.gov.uk/id/local-authority/29UP,Tonbridge & Malling Borough Council,7/20/2022,0032009666/1,32009666, 2240.00,G2 Recruitment Solutions,01786000,,Temporary Staff,Planning Sals&Overheads,D01AJDJ0111300,
http://statistics.data.gov.uk/id/local-authority/29UP,Tonbridge & Malling Borough Council,7/20/2022,0032009667/1,32009667, 3201.39,G2 Recruitment Solutions,01786000,,Temporary Staff,Planning Sals&Overheads,D01AJDJ0111300,
http://statistics.data.gov.uk/id/local-authority/29UP,Tonbridge & Malling Borough Council,7/20/2022,0032009668/1,32009668, 1229.80,The Oyster Partnership,01196400,,Temporary Staff,Planning Sals&Overheads,D01AJDJ0111300,
http://statistics.data.gov.uk/id/local-authority/29UP,Tonbridge & Malling Borough Council,7/20/2022,0032009669/1,32009669, 1058.00,Vivid Resourcing,01773700,,Temporary Staff,Planning Sals&Overheads,D01AJDJ0111300,
http://statistics.data.gov.uk/id/local-authority/29UP,Tonbridge & Malling Borough Council,7/20/2022,0032009670/1,32009670, 882.00,Vivid Resourcing,01773700,,Temporary Staff,Planning Sals&Overheads,D01AJDJ0111300,
http://statistics.data.gov.uk/id/local-authority/29UP,Tonbridge & Malling Borough Council,7/20/2022,0032009671/1,32009671, 2440.08,CBA,01844700,,Development of Local Plan,Development of Local Plan,A01AE000044023,320003411
http://statistics.data.gov.uk/id/local-authority/29UP,Tonbridge & Malling Borough Council,7/20/2022,0032009672/1,32009672, 6250.00,Highgate Planning & Development Ltd,01838600,,Application & Appeals,Development Management,A01AB000044194,320003402
http://statistics.data.gov.uk/id/local-authority/29UP,Tonbridge & Malling Borough Council,7/20/2022,0032009673/1,32009673, 149.94,KM Media Group Ltd,00053900,,Advertising General,Development Management,A01ABZ99944216,320003426
http://statistics.data.gov.uk/id/local-authority/29UP,Tonbridge & Malling Borough Council,7/20/2022,0032009674/1,32009674, 300.00,Planning Jungle Limited,01517100,,Subscriptions,Planning Sals&Overheads,D01AJDJ0147002,320003432
http://statistics.data.gov.uk/id/local-authority/29UP,Tonbridge & Malling Borough Council,7/20/2022,0041034503/1,41034503, 80.00,WorldPay Ltd,01402000,991280207,Credit Card Commission,Banking Arrangements,D43QK000044082,
http://statistics.data.gov.uk/id/local-authority/29UP,Tonbridge & Malling Borough Council,7/20/2022,0041034503/2,41034503, 56.96,WorldPay Ltd,01402000,991280207,Credit Card Commission,Banking Arrangements,D43QK000044082,
http://statistics.data.gov.uk/id/local-authority/29UP,Tonbridge & Malling Borough Council,7/20/2022,0041034503/3,41034503, 0.72,WorldPay Ltd,01402000,991280207,Credit Card Commission,Banking Arrangements,D43QK000044082,
http://statistics.data.gov.uk/id/local-authority/29UP,Tonbridge & Malling Borough Council,7/20/2022,0041034504/1,41034504, 80.00,WorldPay Ltd,01402000,991280207,Credit Card Commission,Banking Arrangements,D43QK000044082,
http://statistics.data.gov.uk/id/local-authority/29UP,Tonbridge & Malling Borough Council,7/20/2022,0041034504/2,41034504, 62.40,WorldPay Ltd,01402000,991280207,Credit Card Commission,Banking Arrangements,D43QK000044082,
http://statistics.data.gov.uk/id/local-authority/29UP,Tonbridge & Malling Borough Council,7/20/2022,0041034504/3,41034504, 0.72,WorldPay Ltd,01402000,991280207,Credit Card Commission,Banking Arrangements,D43QK000044082,
http://statistics.data.gov.uk/id/local-authority/29UP,Tonbridge & Malling Borough Council,7/20/2022,0041034505/1,41034505, 80.00,WorldPay Ltd,01402000,991280207,Credit Card Commission,Banking Arrangements,D43QK000044082,
http://statistics.data.gov.uk/id/local-authority/29UP,Tonbridge & Malling Borough Council,7/20/2022,0041034505/2,41034505, 155.28,WorldPay Ltd,01402000,991280207,Credit Card Commission,Banking Arrangements,D43QK000044082,
http://statistics.data.gov.uk/id/local-authority/29UP,Tonbridge & Malling Borough Council,7/20/2022,0041034506/1,41034506, 1354.94,The Oyster Partnership,01196400,,Temporary Staff,Finance Sals&Overheads,D01AFDF1111300,
http://statistics.data.gov.uk/id/local-authority/29UP,Tonbridge & Malling Borough Council,7/20/2022,0041034507/1,41034507, 1794.38,The Oyster Partnership,01196400,,Temporary Staff,Finance Sals&Overheads,D01AFDF1111300,
http://statistics.data.gov.uk/id/local-authority/29UP,Tonbridge & Malling Borough Council,7/20/2022,0041034508/1,41034508, 46280.00,Kent County Council,00322500,,Temporary Staff,Finance Sals&Overheads,D01AFDF0811300,
http://statistics.data.gov.uk/id/local-authority/29UP,Tonbridge & Malling Borough Council,7/20/2022,0041034512/1,41034512, 918.75,Morgan Hunt UK Ltd,01086900,,Temporary Staff,Finance Sals&Overheads,D01AFDF1111300,
http://statistics.data.gov.uk/id/local-authority/29UP,Tonbridge & Malling Borough Council,7/20/2022,0041034513/1,41034513, 2406.03,Maidstone Borough Council,01173700,,Bailiffs Commission,Local Revenue & NNDR Collect,D41QA000044075,
http://statistics.data.gov.uk/id/local-authority/29UP,Tonbridge & Malling Borough Council,7/20/2022,0041034514/1,41034514, 1844.73,Rundle & Co Ltd,00087200,,Bailiffs Commission,Local Revenue & NNDR Collect,D41QA000044075,
http://statistics.data.gov.uk/id/local-authority/29UP,Tonbridge & Malling Borough Council,7/20/2022,0041034515/1,41034515, 487.62,Rundle & Co Ltd,00087200,,Bailiffs Commission,Local Revenue & NNDR Collect,D41QA000044075,
http://statistics.data.gov.uk/id/local-authority/29UP,Tonbridge & Malling Borough Council,7/20/2022,0051008706/1,51008706, 75.00,LABC Training,01180300,,Ext Fees/Prof & Tech,Training,D10DCDJ0213561,510010538
http://statistics.data.gov.uk/id/local-authority/29UP,Tonbridge & Malling Borough Council,7/21/2022,0041034523/1,41034523, 228.35,National Westminster Bank Plc,00069400,,Bank Charges,Banking Arrangements,D43QK000044222,
http://statistics.data.gov.uk/id/local-authority/29UP,Tonbridge & Malling Borough Council,7/21/2022,0041034524/1,41034524, 20.27,WorldPay Ltd,01402000,991280207,Credit Card Commission,Banking Arrangements,D43QK000044082,
http://statistics.data.gov.uk/id/local-authority/29UP,Tonbridge & Malling Borough Council,7/21/2022,0041034525/1,41034525, 15.00,WorldPay ,01568000,,Credit Card Commission,Banking Arrangements,D43QK000044082,
http://statistics.data.gov.uk/id/local-authority/29UP,Tonbridge & Malling Borough Council,7/21/2022,0041034526/1,41034526, 161.55,WorldPay ,01568000,,Credit Card Commission,Banking Arrangements,D43QK000044082,
http://statistics.data.gov.uk/id/local-authority/29UP,Tonbridge & Malling Borough Council,7/21/2022,0041034527/1,41034527, 1014.13,WorldPay ,01568000,,Credit Card Commission,Banking Arrangements,D43QK000044082,
http://statistics.data.gov.uk/id/local-authority/29UP,Tonbridge & Malling Borough Council,7/22/2022,0041034529/1,41034529, 2313.00,H.M. Revenue & Customs,00048400,,Levy Payment,Apprenticeship Scheme,D10DE000013700,
http://statistics.data.gov.uk/id/local-authority/29UP,Tonbridge & Malling Borough Council,7/22/2022,0041034530/1,41034530, 648.32,H.M. Revenue & Customs,00048400,,Payment re Prev Yrs Cred Acc,Sundry Creditors Finance,J80TF000001101,
http://statistics.data.gov.uk/id/local-authority/29UP,Tonbridge & Malling Borough Council,7/25/2022,0041034528/10,41034528, 40.00,National Westminster Bank Plc,00894500,,Data Protection Act Registrati,Admin & Prop Sals&Overheads,D01AADA0048013,
http://statistics.data.gov.uk/id/local-authority/29UP,Tonbridge & Malling Borough Council,7/25/2022,0041034528/12,41034528, 108.00,National Westminster Bank Plc,00894500,,Legal Fees,Legal Sals&Overheads,D01ARDR0044002,
http://statistics.data.gov.uk/id/local-authority/29UP,Tonbridge & Malling Borough Council,7/25/2022,0041034528/17,41034528, 159.00,National Westminster Bank Plc,00894500,,Miscellaneous Services,Cleaning & Security,D21FD000044015,
http://statistics.data.gov.uk/id/local-authority/29UP,Tonbridge & Malling Borough Council,7/25/2022,0041034528/18,41034528, 14.09,National Westminster Bank Plc,00894500,,Software Hire & Support,Information Technology,D27KD000044059,
http://statistics.data.gov.uk/id/local-authority/29UP,Tonbridge & Malling Borough Council,7/25/2022,0041034528/19,41034528, 55.21,National Westminster Bank Plc,00894500,,Sales,TIC Stock Account,K18AX000002002,
http://statistics.data.gov.uk/id/local-authority/29UP,Tonbridge & Malling Borough Council,7/25/2022,0041034528/20,41034528, 51.61,National Westminster Bank Plc,00894500,,Sales,TIC Stock Account,K18AX000002002,
http://statistics.data.gov.uk/id/local-authority/29UP,Tonbridge & Malling Borough Council,7/25/2022,0041034528/21,41034528, 31.99,National Westminster Bank Plc,00894500,,Sales,TIC Stock Account,K18AX000002002,
http://statistics.data.gov.uk/id/local-authority/29UP,Tonbridge & Malling Borough Council,7/25/2022,0041034528/22,41034528, 77.48,National Westminster Bank Plc,00894500,,Sales,TIC Stock Account,K18AX000002002,
http://statistics.data.gov.uk/id/local-authority/29UP,Tonbridge & Malling Borough Council,7/25/2022,0041034528/23,41034528, 31.77,National Westminster Bank Plc,00894500,,Sales,TIC Stock Account,K18AX000002002,
http://statistics.data.gov.uk/id/local-authority/29UP,Tonbridge & Malling Borough Council,7/25/2022,0041034535/1,41034535, 68.00,National Westminster Bank Plc,00069400,,Direct Debit / Bank Charges,Local Revenue & NNDR Collect,D41QA000044079,
http://statistics.data.gov.uk/id/local-authority/29UP,Tonbridge & Malling Borough Council,7/25/2022,0041034536/1,41034536, 200.00,National Westminster Bank Plc,00069400,,Direct Debit / Bank Charges,Local Revenue & NNDR Collect,D41QA000044079,
http://statistics.data.gov.uk/id/local-authority/29UP,Tonbridge & Malling Borough Council,7/25/2022,0041034537/1,41034537, 2332.45,WorldPay ,01568000,,Credit Card Commission,Banking Arrangements,D43QK000044082,
http://statistics.data.gov.uk/id/local-authority/29UP,Tonbridge & Malling Borough Council,7/25/2022,0041034537/2,41034537, 188.83,WorldPay ,01568000,,Credit Card Commission,Banking Arrangements,D43QK000044082,
http://statistics.data.gov.uk/id/local-authority/29UP,Tonbridge & Malling Borough Council,7/26/2022,0032009681/1,32009681, 3000.00,Design South East,01521100,,Subscriptions,Planning Sals&Overheads,D01AJDJ0147002,
http://statistics.data.gov.uk/id/local-authority/29UP,Tonbridge & Malling Borough Council,7/27/2022,0011044667/1,11044667, 64.00,K T Fire Protection Ltd,00057000,,BRREP Servicing - FireAlarmSys,Tonbridge Farm Pavillion,M15HGP20001937,110069668
http://statistics.data.gov.uk/id/local-authority/29UP,Tonbridge & Malling Borough Council,7/27/2022,0011044668/1,11044668, 68.00,K T Fire Protection Ltd,00057000,,BRREP Servicing - FireAlarmSys,Tonbridge Castle / CAB,M15KFP20001937,110069666
http://statistics.data.gov.uk/id/local-authority/29UP,Tonbridge & Malling Borough Council,7/27/2022,0011044669/1,11044669, 195.70,K T Fire Protection Ltd,00057000,,BRREP Servicing - FireAlarmSys,Gibson Building East,M15KGP20001937,110069665
http://statistics.data.gov.uk/id/local-authority/29UP,Tonbridge & Malling Borough Council,7/27/2022,0011044670/1,11044670, 138.00,K T Fire Protection Ltd,00057000,,BRREP Servicing - FireAlarmSys,Angel Centre,M15HAP20001937,110069669
http://statistics.data.gov.uk/id/local-authority/29UP,Tonbridge & Malling Borough Council,7/27/2022,0011044671/1,11044671, 138.00,K T Fire Protection Ltd,00057000,,BRREP Servicing - FireAlarmSys,Gibson Building West,M15KBP20001937,110069664
http://statistics.data.gov.uk/id/local-authority/29UP,Tonbridge & Malling Borough Council,7/27/2022,0011044672/1,11044672, 185.00,K T Fire Protection Ltd,00057000,,BRREP Servicing - FireAlarmSys,Larkfield Leisure Centre,M15HDP20001937,110069672
http://statistics.data.gov.uk/id/local-authority/29UP,Tonbridge & Malling Borough Council,7/27/2022,0011044673/1,11044673, 68.00,K T Fire Protection Ltd,00057000,,BRREP Servicing - FireAlarmSys,Tonbridge Castle / CAB,M15KFP20001937,110069666
http://statistics.data.gov.uk/id/local-authority/29UP,Tonbridge & Malling Borough Council,7/27/2022,0011044674/1,11044674, 150.00,BML Building Services Ltd,01505000,,BRREP Response - General,Leis Man Poult Wood Golf Centr,M15HEP50001997,110069652
http://statistics.data.gov.uk/id/local-authority/29UP,Tonbridge & Malling Borough Council,7/27/2022,0011044675/1,11044675, 89.00,BML Building Services Ltd,01505000,,BRREP Response - General,Tonbridge Castle / CAB,M15KFP50001997,110069641
http://statistics.data.gov.uk/id/local-authority/29UP,Tonbridge & Malling Borough Council,7/27/2022,0011044676/1,11044676, 1200.00,BML Building Services Ltd,01505000,,BRREP Window/door repairs,Leis Man Poult Wood Golf Centr,M15HEP20001919,110069663
http://statistics.data.gov.uk/id/local-authority/29UP,Tonbridge & Malling Borough Council,7/27/2022,0011044677/1,11044677, 1862.67,GSF SANDYLIGHT LTD,01705300,,Temporary Staff,Admin & Prop Sals&Overheads,D01AADA0511300,
http://statistics.data.gov.uk/id/local-authority/29UP,Tonbridge & Malling Borough Council,7/27/2022,0011044678/1,11044678, 650.00,Cornerstones Barristers,01359100,,Legal Fees,Legal Sals&Overheads,D01ARDR0044002,
http://statistics.data.gov.uk/id/local-authority/29UP,Tonbridge & Malling Borough Council,7/27/2022,0011044679/1,11044679, 10824.40,Cornerstones Barristers,01359100,,Legal Fees,Legal Sals&Overheads,D01ARDR0044002,
http://statistics.data.gov.uk/id/local-authority/29UP,Tonbridge & Malling Borough Council,7/27/2022,0011044680/1,11044680, 261.00,The Bradley Group Ltd,01671800,,BRREP Fire Safety Risk Assess,Angel Centre,M15HAP30001999,
http://statistics.data.gov.uk/id/local-authority/29UP,Tonbridge & Malling Borough Council,7/27/2022,0011044680/2,11044680, 261.00,The Bradley Group Ltd,01671800,,BRREP Fire Safety Risk Assess,Tonbridge Swimming Pool,M15HBP30001999,
http://statistics.data.gov.uk/id/local-authority/29UP,Tonbridge & Malling Borough Council,7/27/2022,0011044681/1,11044681, 5000.00,Capital Space Limited,01523100,,Economic Development & Regen,Eco Dev & Reg Gen Bus Support,D52TD000047027,
http://statistics.data.gov.uk/id/local-authority/29UP,Tonbridge & Malling Borough Council,7/27/2022,0011044682/1,11044682, 22.09,Royal Mail,00086200,,Purchases,Mailsort Stock Account,K37BR000001002,
http://statistics.data.gov.uk/id/local-authority/29UP,Tonbridge & Malling Borough Council,7/27/2022,0011044682/2,11044682, 1.75,Royal Mail,00086200,,Purchases,Mailsort Stock Account,K37BR000001002,
http://statistics.data.gov.uk/id/local-authority/29UP,Tonbridge & Malling Borough Council,7/27/2022,0011044682/3,11044682, 1585.31,Royal Mail,00086200,,Purchases,Mailsort Stock Account,K37BR000001002,
http://statistics.data.gov.uk/id/local-authority/29UP,Tonbridge & Malling Borough Council,7/27/2022,0011044683/1,11044683, 344.83,Initial Washroom Hygiene,00048300,,Cleaning & Domestic Supplies,Cleaning & Security,D21FD000026001,
http://statistics.data.gov.uk/id/local-authority/29UP,Tonbridge & Malling Borough Council,7/27/2022,0011044684/1,11044684, 350.00,BML Building Services Ltd,01505000,,BRREP Response - General,Larkfield Leisure Centre,M15HDP50001997,
http://statistics.data.gov.uk/id/local-authority/29UP,Tonbridge & Malling Borough Council,7/27/2022,0011044685/1,11044685, 43.14,Atlas Facilities Managment Limited ,01075900,,Miscellaneous Services,Cleaning & Security,D21FDDD6044015,
http://statistics.data.gov.uk/id/local-authority/29UP,Tonbridge & Malling Borough Council,7/27/2022,0011044686/1,11044686, 129.42,Atlas Facilities Managment Limited ,01075900,,Miscellaneous Services,Cleaning & Security,D21FDDD6044015,
http://statistics.data.gov.uk/id/local-authority/29UP,Tonbridge & Malling Borough Council,7/27/2022,0011044687/1,11044687, 1680.00,Encore Envelopes Ltd,01750600,,Stationery,Electoral Registration,D31MF000043003,
http://statistics.data.gov.uk/id/local-authority/29UP,Tonbridge & Malling Borough Council,7/27/2022,0011044688/1,11044688, 573.48,KH Recruitment Ltd,01738900,,Temporary Staff,Personnel Sals&Overheads,D01ABDB0311300,
http://statistics.data.gov.uk/id/local-authority/29UP,Tonbridge & Malling Borough Council,7/27/2022,0011044690/1,11044690, 6150.00,Cornerstones Barristers,01359100,,Development of Local Plan,Development of Local Plan,A01AE000044023,
http://statistics.data.gov.uk/id/local-authority/29UP,Tonbridge & Malling Borough Council,7/27/2022,0011044691/1,11044691, 3375.00,Cornerstones Barristers,01359100,,Development of Local Plan,Development of Local Plan,A01AE000044023,
http://statistics.data.gov.uk/id/local-authority/29UP,Tonbridge & Malling Borough Council,7/27/2022,0011044693/1,11044693, 1862.67,GSF SANDYLIGHT LTD,01705300,,Temporary Staff,Admin & Prop Sals&Overheads,D01AADA0511300,
http://statistics.data.gov.uk/id/local-authority/29UP,Tonbridge & Malling Borough Council,7/27/2022,0021038045/1,21038045, 539.65,Gallagher Aggregates,01702300,,Other Expenses,LLCP Facility Improv,P05FF000009908,210056853
http://statistics.data.gov.uk/id/local-authority/29UP,Tonbridge & Malling Borough Council,7/27/2022,0021038050/1,21038050, 816.45,Landscape Services Ltd,00057600,,Grounds Maintenance Contract,Cemetery,B26MP000050103,
http://statistics.data.gov.uk/id/local-authority/29UP,Tonbridge & Malling Borough Council,7/27/2022,0021038051/1,21038051, 1570.00,Forestry First,01834900,,Health & Safety - Trees,Countryside/Woodland Mgt,B22LG000044045,210056786
http://statistics.data.gov.uk/id/local-authority/29UP,Tonbridge & Malling Borough Council,7/27/2022,0021038052/1,21038052, 955.12,Picnic-Benches UK,01853400,,Other Expenses,LLCP Facility Improv,P05FF000009908,210056892
http://statistics.data.gov.uk/id/local-authority/29UP,Tonbridge & Malling Borough Council,7/27/2022,0021038053/1,21038053, 98.00,Imagink LTD,01513300,,Youth Initiatives,Youth Partnerships,B33PG000048124,210056805
http://statistics.data.gov.uk/id/local-authority/29UP,Tonbridge & Malling Borough Council,7/27/2022,0021038054/1,21038054, 87.92,KCC - L.A.S.E.R Commercial Services ,00184300,,Electricity,Open Spaces & Amenity Areas,B22LE000021002,
http://statistics.data.gov.uk/id/local-authority/29UP,Tonbridge & Malling Borough Council,7/27/2022,0021038055/1,21038055, 300.00,SL TreeCare Ltd,01274100,,Health & Safety - Trees,Countryside/Woodland Mgt,B22LG000044045,210056859
http://statistics.data.gov.uk/id/local-authority/29UP,Tonbridge & Malling Borough Council,7/27/2022,0021038055/2,21038055, 35.00,SL TreeCare Ltd,01274100,,Health & Safety - Trees,Countryside/Woodland Mgt,B22LG000044045,210056859
http://statistics.data.gov.uk/id/local-authority/29UP,Tonbridge & Malling Borough Council,7/27/2022,0021038057/1,21038057, 250.00,SWS Countryside & Landscape,01567200,,Maintenance of Grounds,Open Spaces & Amenity Areas,B22LE000020402,210056799
http://statistics.data.gov.uk/id/local-authority/29UP,Tonbridge & Malling Borough Council,7/27/2022,0021038058/1,21038058, 900.99,Cater-Kwik Ltd,01265500,,Other Expenses,LLCP Facility Improv,P05FF000009908,210056899
http://statistics.data.gov.uk/id/local-authority/29UP,Tonbridge & Malling Borough Council,7/27/2022,0021038058/2,21038058, 891.99,Cater-Kwik Ltd,01265500,,Other Expenses,LLCP Facility Improv,P05FF000009908,210056899
http://statistics.data.gov.uk/id/local-authority/29UP,Tonbridge & Malling Borough Council,7/27/2022,0022026886/3,22026886, 102.19,E.ON - Next,01790900,,Electricity,Homelessness,C01AATNPR21002,
http://statistics.data.gov.uk/id/local-authority/29UP,Tonbridge & Malling Borough Council,7/27/2022,0022026887/3,22026887, 1242.46,G2 Recruitment Solutions,01786000,,Temporary Staff,Env Hlth & Hsg Sals&Overheads,D01AVDV0711300,
http://statistics.data.gov.uk/id/local-authority/29UP,Tonbridge & Malling Borough Council,7/27/2022,0022026888/1,22026888, 540.00,Killgerm Group Ltd,01857200,,General,Environmental Protection,H32SN000054012,220003252
http://statistics.data.gov.uk/id/local-authority/29UP,Tonbridge & Malling Borough Council,7/27/2022,0022026889/1,22026889, 13470.00,Dolphin Stairlifts,00698900,,Other Expenses,Disabled Facilities Grant Mand,P03AC000009908,
http://statistics.data.gov.uk/id/local-authority/29UP,Tonbridge & Malling Borough Council,7/27/2022,0022026890/1,22026890, 1729.68,Town & Country Housing Group,01385400,,Other Expenses,Disabled Facilities Grant Mand,P03AC000009908,
http://statistics.data.gov.uk/id/local-authority/29UP,Tonbridge & Malling Borough Council,7/27/2022,0022026891/1,22026891, 123.75,Sevenoaks District Council,00089300,,Healthy Living Initiatives,Public Health - Healthy Living,H40SYVH0048145,220003220
http://statistics.data.gov.uk/id/local-authority/29UP,Tonbridge & Malling Borough Council,7/27/2022,0022026892/1,22026892, 6627.60,Stay Warm Insulation Ltd,01858800,,Other Expenses,Housing Assistance,P03AD000009908,
http://statistics.data.gov.uk/id/local-authority/29UP,Tonbridge & Malling Borough Council,7/27/2022,0022026893/1,22026893, 1956.00,Enviro Technology Services PLC,01461300,,Air Quality Monitoring,Environmental Protection,H32SN000054016,220003251
http://statistics.data.gov.uk/id/local-authority/29UP,Tonbridge & Malling Borough Council,7/27/2022,0022026894/1,22026894, 2836.30,Tunbridge Wells Borough Council,00844600,,Other Expenses,Refuse Collection,H20SA000048010,
http://statistics.data.gov.uk/id/local-authority/29UP,Tonbridge & Malling Borough Council,7/27/2022,0022026895/1,22026895, 4800.64,Wybone Ltd,00815800,,Purchases,Street Scene,H23SD000040101,
http://statistics.data.gov.uk/id/local-authority/29UP,Tonbridge & Malling Borough Council,7/27/2022,0031018791/1,31018791, 563.34,Royal British Legion Industries Ltd,00139700,,Maintenance - General,Parking Off-Street,E10HA000040135,310042847
http://statistics.data.gov.uk/id/local-authority/29UP,Tonbridge & Malling Borough Council,7/27/2022,0031018792/1,31018792, 148.62,ToolChimp Limited,01432300,863474793,Fixtures & Fittings,Buildings,D21FE000025001,210056864
http://statistics.data.gov.uk/id/local-authority/29UP,Tonbridge & Malling Borough Council,7/27/2022,0031018793/1,31018793, 99.20,Beal UK LTD,01235500,,Advertising General,Parking On-Street,E10HD000044216,310042807
http://statistics.data.gov.uk/id/local-authority/29UP,Tonbridge & Malling Borough Council,7/27/2022,0031018797/1,31018797, 42536.60,HEREF Tonbridge Ltd,01518900,,Payment re Prev Yrs Cred Acc,Sundry Creditors SSLTS,J80TL000001101,
http://statistics.data.gov.uk/id/local-authority/29UP,Tonbridge & Malling Borough Council,7/27/2022,0031018798/1,31018798, 40367.60,HEREF Tonbridge Ltd,01518900,,Payment re Prev Yrs Cred Acc,Sundry Creditors SSLTS,J80TL000001101,
http://statistics.data.gov.uk/id/local-authority/29UP,Tonbridge & Malling Borough Council,7/27/2022,0031018799/1,31018799, 45077.20,HEREF Tonbridge Ltd,01518900,,Payment re Prev Yrs Cred Acc,Sundry Creditors SSLTS,J80TL000001101,
http://statistics.data.gov.uk/id/local-authority/29UP,Tonbridge & Malling Borough Council,7/27/2022,0031018800/1,31018800, 41444.20,HEREF Tonbridge Ltd,01518900,,Payment re Prev Yrs Cred Acc,Sundry Creditors SSLTS,J80TL000001101,
http://statistics.data.gov.uk/id/local-authority/29UP,Tonbridge & Malling Borough Council,7/27/2022,0031018801/1,31018801, 1260.00,Sevenoaks District Council,00089300,,Out of Hours Service,Civil Contingencies,D33NA000045025,
http://statistics.data.gov.uk/id/local-authority/29UP,Tonbridge & Malling Borough Council,7/27/2022,0031018803/1,31018803, 770.00,Mood Signs Limited,01595800,,Premises Repairs & Maintenance,Parking Off-Street,E10HAE00620601,310042854
http://statistics.data.gov.uk/id/local-authority/29UP,Tonbridge & Malling Borough Council,7/27/2022,0031018804/1,31018804, 2860.00,Mood Signs Limited,01595800,,Contract Payments,Electric Veh Charging Points,P01EA000009904,310042843
http://statistics.data.gov.uk/id/local-authority/29UP,Tonbridge & Malling Borough Council,7/27/2022,0032009675/3,32009675, 1687.50,Carrington West Limited,01844500,,Temporary Staff,Planning Sals&Overheads,D01AJDJ0111300,
http://statistics.data.gov.uk/id/local-authority/29UP,Tonbridge & Malling Borough Council,7/27/2022,0032009676/3,32009676, 3331.32,G2 Recruitment Solutions,01786000,,Temporary Staff,Planning Sals&Overheads,D01AJDJ0111300,
http://statistics.data.gov.uk/id/local-authority/29UP,Tonbridge & Malling Borough Council,7/27/2022,0032009677/3,32009677, 1566.57,The Oyster Partnership,01196400,,Temporary Staff,Planning Sals&Overheads,D01AJDJ0111300,
http://statistics.data.gov.uk/id/local-authority/29UP,Tonbridge & Malling Borough Council,7/27/2022,0032009678/3,32009678, 1773.75,The Oyster Partnership,01196400,,Temporary Staff,Planning Sals&Overheads,D01AJDJ0111300,
http://statistics.data.gov.uk/id/local-authority/29UP,Tonbridge & Malling Borough Council,7/27/2022,0032009679/3,32009679, 1612.50,Carrington West Limited,01844500,,Temporary Staff,Planning Sals&Overheads,D01AJDJ0111300,
http://statistics.data.gov.uk/id/local-authority/29UP,Tonbridge & Malling Borough Council,7/27/2022,0032009680/1,32009680, 289.17,KM Media Group Ltd,00053900,,Advertising General,Development Management,A01ABZ99944216,320003427
http://statistics.data.gov.uk/id/local-authority/29UP,Tonbridge & Malling Borough Council,7/27/2022,0032009682/1,32009682, 10.99,KCS,00054200,,Stationery,Planning Sals&Overheads,D01AJDJ0143003,320003433
http://statistics.data.gov.uk/id/local-authority/29UP,Tonbridge & Malling Borough Council,7/27/2022,0032009682/2,32009682, 2.95,KCS,00054200,,Stationery,Planning Sals&Overheads,D01AJDJ0143003,320003433
http://statistics.data.gov.uk/id/local-authority/29UP,Tonbridge & Malling Borough Council,7/27/2022,0032009683/1,32009683, 3000.00,Design South East,01521100,,Subscriptions,Planning Sals&Overheads,D01AJDJ0147002,
http://statistics.data.gov.uk/id/local-authority/29UP,Tonbridge & Malling Borough Council,7/27/2022,0032009684/1,32009684, 1702.00,Vivid Resourcing,01773700,,Temporary Staff,Planning Sals&Overheads,D01AJDJ0111300,
http://statistics.data.gov.uk/id/local-authority/29UP,Tonbridge & Malling Borough Council,7/27/2022,0032009685/1,32009685, 1750.00,Vivid Resourcing,01773700,,Temporary Staff,Planning Sals&Overheads,D01AJDJ0111300,
http://statistics.data.gov.uk/id/local-authority/29UP,Tonbridge & Malling Borough Council,7/27/2022,0041034539/1,41034539, 1391.56,The Oyster Partnership,01196400,,Temporary Staff,Finance Sals&Overheads,D01AFDF1111300,
http://statistics.data.gov.uk/id/local-authority/29UP,Tonbridge & Malling Borough Council,7/27/2022,0041034540/1,41034540, 1574.66,The Oyster Partnership,01196400,,Temporary Staff,Finance Sals&Overheads,D01AFDF1111300,
http://statistics.data.gov.uk/id/local-authority/29UP,Tonbridge & Malling Borough Council,7/27/2022,0041034541/1,41034541, 278.30,Morgan Hunt UK Ltd,01086900,,Temporary Staff,Finance Sals&Overheads,D01AFDF1111300,
http://statistics.data.gov.uk/id/local-authority/29UP,Tonbridge & Malling Borough Council,7/27/2022,0041034542/1,41034542, 278.30,Morgan Hunt UK Ltd,01086900,,Temporary Staff,Finance Sals&Overheads,D01AFDF1111300,
http://statistics.data.gov.uk/id/local-authority/29UP,Tonbridge & Malling Borough Council,7/27/2022,0041034543/1,41034543, 971.25,Morgan Hunt UK Ltd,01086900,,Temporary Staff,Finance Sals&Overheads,D01AFDF1111300,
http://statistics.data.gov.uk/id/local-authority/29UP,Tonbridge & Malling Borough Council,7/27/2022,0041034544/1,41034544, 975.12,Rundle & Co Ltd,00087200,,Bailiffs Commission,Local Revenue & NNDR Collect,D41QA000044075,
http://statistics.data.gov.uk/id/local-authority/29UP,Tonbridge & Malling Borough Council,7/27/2022,0041034545/1,41034545, 438.80,Rundle & Co Ltd,00087200,,Bailiffs Commission,Local Revenue & NNDR Collect,D41QA000044075,
http://statistics.data.gov.uk/id/local-authority/29UP,Tonbridge & Malling Borough Council,7/27/2022,0051008726/1,51008726, 30.00,Maidstone & Tun Wells NHS Trust,00067100,,Occuptional Health Medicals,Health Care,D10DB000013311,
http://statistics.data.gov.uk/id/local-authority/29UP,Tonbridge & Malling Borough Council,7/27/2022,0051008726/2,51008726, 60.00,Maidstone & Tun Wells NHS Trust,00067100,,Occuptional Health Medicals,Health Care,D10DBDG0113311,
http://statistics.data.gov.uk/id/local-authority/29UP,Tonbridge & Malling Borough Council,7/27/2022,0051008726/3,51008726, 108.00,Maidstone & Tun Wells NHS Trust,00067100,,Occuptional Health Medicals,Health Care,D10DBDG0113311,
http://statistics.data.gov.uk/id/local-authority/29UP,Tonbridge & Malling Borough Council,7/27/2022,0051008726/4,51008726, 145.00,Maidstone & Tun Wells NHS Trust,00067100,,Occuptional Health Medicals,Health Care,D10DBDJ0113311,
